{"text_format":"1","workbook":"xlsx","n_sheets":5,"sheets":["Ficha socio-económica","Datos","Cálculo","Formato expediente","Tabla"],"not_rendered":{"charts":0,"images":0,"macros":1,"external_links":0,"defined_names":7,"comments":0,"pivot_tables":0},"unopened":[],"bounds":{"document_bytes":16777216,"sheet_cells":100000,"rows_first":2000,"rows_last":500,"rows_between":2000,"halvings":0,"cell_chars":16384,"cell_head_chars":4096},"cells_cut":0,"cells_raw":0,"read":"whole","date_system":"1900"}

{"sheet":"Ficha socio-económica","index":0,"n_rows":279,"n_cols":11,"rows_kept":279,"cut":false,"hidden":false,"merged":[[1,0,1,8],[3,0,3,8],[30,0,30,5],[20,3,20,8],[11,0,11,1],[18,5,18,8],[16,6,16,8],[27,0,27,1],[13,0,13,1],[10,3,10,8],[2,0,2,7],[10,0,10,2],[20,0,20,2],[15,4,15,8],[11,6,11,8],[12,1,12,8],[36,0,36,8],[35,5,35,8],[26,2,26,3],[26,4,26,8],[31,4,31,8],[27,6,27,8],[35,0,35,4],[28,4,28,8],[32,4,32,5],[33,4,33,8],[32,6,32,8],[30,6,30,8],[32,2,32,3],[23,5,23,8],[6,1,6,2],[16,1,16,2],[22,0,22,1],[15,0,15,3],[23,2,23,4],[7,1,7,4],[8,2,8,4],[7,7,7,8],[4,7,4,8],[5,6,5,8],[32,0,32,1],[31,2,31,3],[25,0,25,5],[25,6,25,8],[27,2,27,3],[9,0,9,2],[22,7,22,8],[9,3,9,8],[13,5,13,8],[22,2,22,3],[17,1,17,8],[8,0,8,1],[27,4,27,5],[6,7,6,8],[4,4,4,5],[4,0,4,1],[4,2,4,3],[5,0,5,1],[5,2,5,5]]}
[]
["FICHA SOCIO-ECONÓMICA"]
["Por favor señor estudiante llene la ficha con todos los casilleros correspondiente a datos personales aunque se auto-eduque y una vez terminada guárdela en el formato EXCEL y el formato PDF, y envíe los dos archivos al correo becasordinarias@uandina.edu.pe al igual que los otros documentos solicitados."]
["CATEGORIA: DATOS PERSONALES"]
["APELLIDO PATERNO:",null,"COMPLETAR",null,"APELLIDO PATERNO:",null,"COMPLETAR",null,null,null,{"$f":"C5&\" \"&G5&\", \"&C6","v":"COMPLETAR COMPLETAR, COMPLETAR"}]
["NOMBRES:",null,"COMPLETAR"]
["CÓDIGO:                                                                      ","COMPLETAR",null,"DNI:","COMPLETAR","EDAD:","COMPLETAR"]
["FACULTAD:",null,null,null,null,"CICLO:","COMPLETAR",{"$f":"VLOOKUP(B8,Datos!A2:B7,2,FALSE)","v":{"$error":"#N/A"}}]
["ESCUELA PROFESIONAL:",null,null,null,null,"SEMESTRE:","COMPLETAR","SEDE/FILIAL:"]
["LUGAR Y FECHA DE NACIMIENTO:",null,null,"COMPLETAR"]
["DIRECCIÓN EN LA CIUDAD DEL CUSCO:",null,null,"COMPLETAR"]
["DISTRITO:",null,"COMPLETAR","PROVINCIA:","COMPLETAR","DEPARTAMENTO:","COMPLETAR"]
["REFERENCIA:","COMPLETAR"]
["TELÉFONO FIJO:",null,"COMPLETAR","CELULAR:","COMPLETAR"]
[]
["DIRECCIÓN EN LUGAR DE ORIGEN (SOLO SI ES DE OTRO LUGAR):",null,null,null,"COMPLETAR"]
["DISTRITO:","COMPLETAR",null,"PROVINCIA:","COMPLETAR","DEPARTAMENTO:","COMPLETAR"]
["REFERENCIA:","COMPLETAR"]
["TELÉFONO FIJO:",null,"COMPLETAR","CELULAR:","COMPLETAR"]
[]
["SI SE AUTOEDUCA ESPECIFIQUE SU ACTIVIDAD:     ",null,null,"COMPLETAR"]
[]
["TIPO DE SEGURO QUE POSEE:                                                          ",null,"COMPLETAR",null,"CÓDIGO DE PAGO","COMPLETAR","FECHA DE PAGO","COMPLETAR"]
["NOMBRE DE LA ASEGURADORA:",null,"COMPLETAR"]
[]
["NOMBRE DEL PADRE DE FAMILIA Y/O TUTOR LEGAL RESPONSABLE ECONÓMICO DE SU EDUCACIÓN:   ",null,null,null,null,null,"COMPLETAR"]
["DNI:","COMPLETAR","DIRECCIÓN COMPLETA:",null,"COMPLETAR"]
["CENTRO DE TRABAJO:",null,"COMPLETAR",null,"ACTIVIDAD A LA QUE SE DEDICA:",null,"COMPLETAR"]
["CELULAR:","COMPLETAR","TELEFONO:","COMPLETAR"]
[]
["NOMBRE DE LA MADRE DE FAMILIA Y/O TUTOR LEGAL RESPONSABLE ECONÓMICO DE SU EDUCACIÓN:   ",null,null,null,null,null,"COMPLETAR"]
["DNI:","COMPLETAR","DIRECCIÓN COMPLETA:",null,"COMPLETAR"]
["CENTRO DE TRABAJO:",null,"COMPLETAR",null,"ACTIVIDAD A LA QUE SE DEDICA:",null,"COMPLETAR"]
["CELULAR:","COMPLETAR","TELEFONO:","COMPLETAR"]
[]
["ESPECIFICAR LA ACTIVIDAD LABORAL DEL RESPONSABLE ECONOMICO DE SU EDUCACIÓN: \n",null,null,null,null,"COMPLETAR"]
["COMPLETAR"]
[]
["El estudiante debe marcar una sóla alternativa con un aspa (X), caso contrario no será considerado válido."]
[]
["CATEGORÍA: VIVIENDA"]
["N°","CATEGORIAS",null,null,null,"ITEM","ALTERNATIVA",null,"Marcar (X)","PUNTAJE"]
[1,"TENENCIA DE  VIVIENDA",null,null,null,"a","ALOJADO",null,null,5]
[2,"TENENCIA DE  VIVIENDA",null,null,null,"b","FAMILIAR",null,null,4]
[3,"TENENCIA DE  VIVIENDA",null,null,null,"c","ALQUILADA",null,null,3]
[4,"TENENCIA DE  VIVIENDA",null,null,null,"d","CONGREGACION",null,null,2]
[5,"TENENCIA DE  VIVIENDA",null,null,null,"e","PROPIA",null,null,1]
[6,"CONTRUCCIÓN DEVIVIENDA",null,null,null,"a","SEMICONSTRUIDA",null,null,5]
[7,"CONTRUCCIÓN DEVIVIENDA",null,null,null,"b","CONSTRUIDA 1 PISO",null,null,4]
[8,"CONTRUCCIÓN DEVIVIENDA",null,null,null,"c","CONSTRUIDA 2 PISO",null,null,3]
[9,"CONTRUCCIÓN DEVIVIENDA",null,null,null,"d","CONSTRUIDA 3 PISO",null,null,2]
[10,"CONTRUCCIÓN DEVIVIENDA",null,null,null,"e","CONSTRUIDA MAS DE 3 PISO",null,null,1]
[11,"UBICACIÓN DE LA VIVIENDA",null,null,null,"a","COMUNIDAD CAMPESINA",null,null,7]
[12,"UBICACIÓN DE LA VIVIENDA",null,null,null,"b","ASENTAMIENTO HUMANO O PP.JJ",null,null,6]
[13,"UBICACIÓN DE LA VIVIENDA",null,null,null,"c","BARRIO POPULAR",null,null,5]
[14,"UBICACIÓN DE LA VIVIENDA",null,null,null,"d","CERCADO - PATRIMONIO",null,null,4]
[15,"UBICACIÓN DE LA VIVIENDA",null,null,null,"e","CONJUNTO HABITACIONAL O UNIDAD VECINAL",null,null,3]
[16,"UBICACIÓN DE LA VIVIENDA",null,null,null,"f","CONDOMINIO",null,null,2]
[17,"UBICACIÓN DE LA VIVIENDA",null,null,null,"g","ZONA RESIDENCIAL",null,null,1]
[18,"MATERIAL PAREDES",null,null,null,"a","ESTERA",null,null,6]
[19,"MATERIAL PAREDES",null,null,null,"b","PIEDRA CON BARRO",null,null,5]
[20,"MATERIAL PAREDES",null,null,null,"c","MADERA",null,null,4]
[21,"MATERIAL PAREDES",null,null,null,"d","ADOBE",null,null,3]
[22,"MATERIAL PAREDES",null,null,null,"e","MIXTA",null,null,2]
[23,"MATERIAL PAREDES",null,null,null,"f","NOBLE (ladrillo, cemento)",null,null,1]
[24,"TECHO DE VIVIENDA",null,null,null,"a","PLASTICO",null,null,7]
[25,"TECHO DE VIVIENDA",null,null,null,"b","PAJA",null,null,6]
[26,"TECHO DE VIVIENDA",null,null,null,"c","CALAMINA",null,null,5]
[27,"TECHO DE VIVIENDA",null,null,null,"d","ETERNIT, TEJA ANDINA",null,null,4]
[28,"TECHO DE VIVIENDA",null,null,null,"e","TEJAS",null,null,3]
[29,"TECHO DE VIVIENDA",null,null,null,"f","LOZA CON TEJA",null,null,2]
[30,"TECHO DE VIVIENDA",null,null,null,"g","AZOTEA",null,null,1]
[31,"MATERIAL PISO",null,null,null,"a","TIERRA",null,null,6]
[32,"MATERIAL PISO",null,null,null,"b","MADERA",null,null,5]
[33,"MATERIAL PISO",null,null,null,"c","FALSO PISO",null,null,4]
[34,"MATERIAL PISO",null,null,null,"d","CEMENTO PULIDO",null,null,3]
[35,"MATERIAL PISO",null,null,null,"e","VINILICO O LOSETA",null,null,2]
[36,"MATERIAL PISO",null,null,null,"f","PARQUET O MADERA",null,null,1]
[37,"HABITACIONES",null,null,null,"a","UNICA",null,null,7]
[38,"HABITACIONES",null,null,null,"b","DOS AMBIENTES",null,null,6]
[39,"HABITACIONES",null,null,null,"c","COCINA, SALA, COMEDOR Y UN DORMITORIO",null,null,5]
[40,"HABITACIONES",null,null,null,"d","SALA, COCINA, COMEDOR Y DOS DORMITORIOS",null,null,4]
[41,"HABITACIONES",null,null,null,"e","SALA, COMEDOR Y  + DE 2 DORMITORIOS",null,null,3]
[42,"HABITACIONES",null,null,null,"f","AMBIENTES ANTERIORES (e) MÁS SALA DE ESTUDIO Y  ESTAR",null,null,2]
[43,"HABITACIONES",null,null,null,"g","AMBENTES ANTERIÓRES (f) MÁS COCHERA",null,null,1]
[44,"TIPO DE VIVIENDA",null,null,null,"a","HABITACIÓN MULTIFUNCIONAL",null,null,4]
[45,"TIPO DE VIVIENDA",null,null,null,"b","CASONA COMPARTIDA",null,null,3]
[46,"TIPO DE VIVIENDA",null,null,null,"c","DEPARTAMENTO",null,null,2]
[47,"TIPO DE VIVIENDA",null,null,null,"d","CASA INDEPENDIENTE",null,null,1]
["CATEGORIA: SERVICIOS"]
[48,"SERVICIOS - AGUA",null,null,null,"a","CISTERNA",null,null,4]
[49,"SERVICIOS - AGUA",null,null,null,"b","POZO",null,null,3]
[50,"SERVICIOS - AGUA",null,null,null,"c","PILÓN COMUNITARIO",null,null,2]
[51,"SERVICIOS - AGUA",null,null,null,"d","RED DOMICILIARIA",null,null,1]
[52,"SERVICIO DE AGUA TIPO",null,null,null,"a","AGUA FRIA",null,null,4]
[53,"SERVICIO DE AGUA TIPO",null,null,null,"b","AGUA CALIENTE A GAS",null,null,3]
[54,"SERVICIO DE AGUA TIPO",null,null,null,"c","AGUA CALIENTE ELECTRICA",null,null,2]
[55,"SERVICIO DE AGUA TIPO",null,null,null,"d","AGUA CALIENTE THERMA SOLAR",null,null,1]
[56,"SERVICIOS - DESAGUE",null,null,null,"a","SIN CONEXIÓN",null,null,3]
[57,"SERVICIOS - DESAGUE",null,null,null,"b","SILO",null,null,2]
[58,"SERVICIOS - DESAGUE",null,null,null,"c","CONEXIÓN A RED",null,null,1]
[59,"SERVICIOS HIGIÉNICOS",null,null,null,"a","CORRAL",null,null,6]
[60,"SERVICIOS HIGIÉNICOS",null,null,null,"b","SILO",null,null,5]
[61,"SERVICIOS HIGIÉNICOS",null,null,null,"c","COMPARTIDO",null,null,4]
[62,"SERVICIOS HIGIÉNICOS",null,null,null,"d","1/2 BAÑO",null,null,3]
[63,"SERVICIOS HIGIÉNICOS",null,null,null,"e","BAÑO COMPLETO",null,null,2]
[64,"SERVICIOS HIGIÉNICOS",null,null,null,"f","MAS DE UN BAÑO",null,null,1]
[65,"TELECOMUNICACIONES ",null,null,null,"a","NINGUNO",null,null,3]
[66,"TELECOMUNICACIONES ",null,null,null,"b","TELÉFONO - FIJO",null,null,2]
[67,"TELECOMUNICACIONES ",null,null,null,"c","TELÉFONO MOVIL",null,null,1]
[68,"SERVICIOS - LUZ",null,null,null,"a","SIN CONEXIÓN",null,null,4]
[69,"SERVICIOS - LUZ",null,null,null,"b","CONEXIÓN MULTIFAMILIAR",null,null,3]
[70,"SERVICIOS - LUZ",null,null,null,"c","CONEXIÓN FAMILIAR",null,null,2]
[71,"SERVICIOS - LUZ",null,null,null,"d","CONEXIÓN PERSONALIZADA",null,null,1]
[72,"COCCIÓN DE ALIMENTOS",null,null,null,"a","LEÑA",null,null,4]
[73,"COCCIÓN DE ALIMENTOS",null,null,null,"b","CARBON",null,null,3]
[74,"COCCIÓN DE ALIMENTOS",null,null,null,"c","GAS",null,null,2]
[75,"COCCIÓN DE ALIMENTOS",null,null,null,"d","ELECTRICO",null,null,1]
["CATEGORIA: OTRAS COMODIDADES"]
[76,"ARTEFACTOS ELECTRO",null,null,null,"a","SIN ARTEFACTOS",null,null,5]
[77,"ARTEFACTOS ELECTRO",null,null,null,"b","1 A 2 ARTEFACTOS",null,null,4]
[78,"ARTEFACTOS ELECTRO",null,null,null,"c","3 A 4 ARTEFACTOS",null,null,3]
[79,"ARTEFACTOS ELECTRO",null,null,null,"d","5 ARTEFACTOS",null,null,2]
[80,"ARTEFACTOS ELECTRO",null,null,null,"e","MAS DE 5 ARTEFACTOS",null,null,1]
[81,"VEHICULO",null,null,null,"a","NO CUENTA CON VEHICULO",null,null,5]
[82,"VEHICULO",null,null,null,"b","BICICLETA",null,null,4]
[83,"VEHICULO",null,null,null,"c","TRICICLO",null,null,3]
[84,"VEHICULO",null,null,null,"d","MOTOCICLETA",null,null,2]
[85,"VEHICULO",null,null,null,"e","CARRO (ESPECIFIQUE EL TIPO):",null,null,1]
[86,"COMUNICACION",null,null,null,"a","TELEFONO FIJO",null,null,5]
[87,"COMUNICACION",null,null,null,"b","CELULAR",null,null,4]
[88,"COMUNICACION",null,null,null,"c","CABLE",null,null,3]
[89,"COMUNICACION",null,null,null,"d","INTERNET",null,null,2]
[90,"COMUNICACION",null,null,null,"e","INTERNET EN CELULAR",null,null,1]
[91,"PATIO O SIN PATIO",null,null,null,"a","INDICAR METRAJE APROXIMADO: ",null,null,5]
[92,"PATIO - COCHERA",null,null,null,"b","INDICAR PARA QUE N° DE VEHICULOS:",null,null,4]
[93,"AREA VERDE",null,null,null,"c","EN FACHADA",null,null,3]
[94,"AREA VERDE",null,null,null,"d","EN INTERIOR",null,null,2]
[95,"AREA VERDE",null,null,null,"e","EN INTERIOR Y FACHADA",null,null,1]
["CATEGORIA: FAMILIA Y ESTADO CIVIL"]
[96,"TIPO DE FAMILIA (Especificar)",null,null,null,"a","MONOPARENTAL (Padre o madre e hijo (s)",null,null,3]
[97,"TIPO DE FAMILIA",null,null,null,"b","FAMILIA EXTENDIDA (padres, hermanos, abuelos, tios, etc.) ",null,null,2]
[98,"TIPO DE FAMILIA",null,null,null,"c","FAMILIA NUCLEAR (padres e hijos)",null,null,1]
[99,"MIEMBROS DE LA FAMILIA NUCLEAR",null,null,null,"a","SEÍS A MÁS ",null,null,4]
[100,"MIEMBROS DE LA FAMILIA NUCLEAR",null,null,null,"b","CINCO",null,null,3]
[101,"MIEMBROS DE LA FAMILIA NUCLEAR",null,null,null,"c","CUATRO",null,null,2]
[102,"MIEMBROS DE LA FAMILIA NUCLEAR",null,null,null,"d","TRES",null,null,1]
[103,"MIEMBROS DE FAMILIA EXTENDIDA",null,null,null,"a","MÁS DE CUATRO",null,null,4]
[104,"MIEMBROS DE FAMILIA EXTENDIDA",null,null,null,"b","TRES A CUATRO",null,null,3]
[105,"MIEMBROS DE FAMILIA EXTENDIDA",null,null,null,"c","UNO A  DOS",null,null,2]
[106,"MIEMBROS DE FAMILIA EXTENDIDA",null,null,null,"d","CONVIVENCIA SIN FAMILIA EXTENDIDA",null,null,1]
[107,"ESTRUCTURA FAMILIAR",null,null,null,"a","SEPARADO O DIVORCIADO VIUDO(A)",null,null,3]
[108,"ESTRUCTURA FAMILIAR",null,null,null,"b","COHABITACIÓN",null,null,2]
[109,"ESTRUCTURA FAMILIAR",null,null,null,"c","CASADOS",null,null,1]
[110,"ESTADO CIVIL ",null,null,null,"a","VIUDO (a) CON HIJOS",null,null,5]
[111,"ESTADO CIVIL",null,null,null,"b","SOLTERO CON DOS HIJOS O MÁS",null,null,4]
[112,"ESTADO CIVIL",null,null,null,"c","SOLTERO CON UN HIJO (A)",null,null,3]
[113,"ESTADO CIVIL",null,null,null,"d","CASADO CON DOS HIJOS O MÁS",null,null,2]
[114,"ESTADO CIVIL",null,null,null,"e","CASADO CON DOS HIJOS O MÁS",null,null,1]
["CATEGORIA: SALUD"]
[115,"PROBLEMAS DE SALUD CRÓNICA",null,null,null,"a","DOS MIEMBROS",null,null,3]
[116,"PROBLEMAS DE SALUD CRÓNICA",null,null,null,"b","UN MIEMBRO",null,null,2]
[117,"PROBLEMAS DE SALUD CRÓNICA",null,null,null,"c","NINGUNO",null,null,1]
[118,"ENFERMEDAD",null,null,null,"a","TERMINAL",null,null,5]
[119,"ENFERMEDAD",null,null,null,"b","DISCAPACIDAD",null,null,4]
[120,"ENFERMEDAD",null,null,null,"c","CRONICA (MAS DE 30 DIAS)",null,null,3]
[121,"ENFERMEDAD",null,null,null,"d","AGUDA (HASTA 30 DIAS)",null,null,2]
[122,"ENFERMEDAD",null,null,null,"e","NINGUNO",null,null,1]
[123,"ALIMENTACIÓN",null,null,null,"a","PRODUCTOS DE LA REGIÓN",null,null,3]
[124,"ALIMENTACIÓN",null,null,null,"b","PRODUCTOS PROCESADOS",null,null,2]
[125,"ALIMETNACIÓN",null,null,null,"c","PRODUCTOS IMPORTADOS",null,null,1]
["CATEGORIA: EDUCACIÓN"]
[126,"CENTRO EDUCATIVO - PROCEDENCIA",null,null,null,"a","ESTATAL",null,null,3]
[127,"CENTRO EDUCATIVO - PROCEDENCIA",null,null,null,"b","PARA ESTATAL",null,null,2]
[128,"CENTRO EDUCATIVO - PROCEDENCIA",null,null,null,"c","PRIVADO",null,null,1]
[129,"RESPONSABLE DE LA EDUCACIÓN ",null,null,null,"a","AUTOEDUCACIÓN ",null,null,7]
[130,"RESPONSABLE DE LA EDUCACIÓN ",null,null,null,"b","PADRE",null,null,6]
[131,"RESPONSABLE DE LA EDUCACIÓN ",null,null,null,"c","MADRE",null,null,5]
[132,"RESPONSABLE DE LA EDUCACIÓN ",null,null,null,"e","AMBOS PADRES",null,null,4]
[133,"RESPONSABLE DE LA EDUCACIÓN ",null,null,null,"f","ABUELOS (Especificar)",null,null,3]
[134,"RESPONSABLE DE LA EDUCACIÓN ",null,null,null,"g","HERMANOS (Especificar)",null,null,2]
[135,"RESPONSABLE DE LA EDUCACIÓN ",null,null,null,"h","TIOS, OTROS (Especificar) ",null,null,1]
[136,"HERMANOS ESTUDIANDO",null,null,null,"a","MÁS DE TRES",null,null,4]
[137,"HERMANOS ESTUDIANDO",null,null,null,"b","DOS",null,null,3]
[138,"HERMANOS ESTUDIANDO",null,null,null,"c","UNO",null,null,2]
[139,"HERMANOS ESTUDIANDO",null,null,null,"d","NINGUNO",null,null,1]
[140,"HNOS. EN LA MISMA UNIVERSIDAD QUE UD.",null,null,null,"a","TRES",null,null,4]
[141,"HNOS. EN LA MISMA UNIVERSIDAD QUE UD.",null,null,null,"b","DOS",null,null,3]
[142,"HNOS. EN LA MISMA UNIVERSIDAD QUE UD.",null,null,null,"c","UNO",null,null,2]
[143,"HNOS. EN LA MISMA UNIVERSIDAD QUE UD.",null,null,null,"d","NINGUNO",null,null,1]
["CATEGORIA ECONÓMICA: INGRESOS"]
[144,"MONTO DE INGRESO TOTAL",null,null,null,"a","BÁSICO (MENOS DE 1,300.00)",null,null,6]
[145,"MONTO DE INGRESO TOTAL",null,null,null,"b","ENTRE S/. 1300.00 A 1500.00",null,null,5]
[146,"MONTO DE INGRESO TOTAL",null,null,null,"c","ENTRE S/. 1500.00 A 2500.00",null,null,4]
[147,"MONTO DE INGRESO TOTAL",null,null,null,"d","ENTRE S/. 2500.00 A 4000.00",null,null,3]
[148,"MONTO DE INGRESO TOTAL",null,null,null,"e","MAS DE S/. 4000.00",null,null,2]
[149,"MONTO DE INGRESO TOTAL",null,null,null,"f","INGRESOS ADICIONALES",null,null,1]
[150,"APORTE ECONÓMICO",null,null,null,"a","SOLO MADRE",null,null,6]
[151,"APORTE ECONÓMICO",null,null,null,"b","SOLO PADRE",null,null,5]
[152,"APORTE ECONÓMICO",null,null,null,"c","AMBOS PADRES",null,null,4]
[153,"APORTE ECONÓMICO",null,null,null,"d","MADRE Y OTRO MIEMBRO",null,null,3]
[154,"APORTE ECONÓMICO",null,null,null,"e","PADRE Y OTRO MIEMBRO",null,null,2]
[155,"APORTE ECONÓMICO",null,null,null,"f","MAS DE TRES MIENBROS",null,null,1]
[156,"CONDICIÓN DE OCUPACIÓN DE PADRE",null,null,null,"a","CON OCUPACION INFORMAL TEMPORAL",null,null,10]
[157,"CONDICIÓN DE OCUPACIÓN DE PADRE",null,null,null,"b","PENSIONISTA ONP",null,null,9]
[158,"CONDICIÓN DE OCUPACIÓN DE PADRE",null,null,null,"c","CESANTE AFP",null,null,8]
[159,"CONDICIÓN DE OCUPACIÓN DE PADRE",null,null,null,"d","CESANTE 20530",null,null,7]
[160,"CONDICIÓN DE OCUPACIÓN DE PADRE",null,null,null,"e","ESTATAL CONTRATADO",null,null,6]
[161,"CONDICIÓN DE OCUPACIÓN DE PADRE",null,null,null,"f","ESTATAL NOMBRADO",null,null,5]
[162,"CONDICIÓN DE OCUPACIÓN DE PADRE",null,null,null,"g","PRIVADO CONTRATADO ",null,null,4]
[163,"CONDICIÓN DE OCUPACIÓN DE PADRE",null,null,null,"h","PRIVADO NOMBRADO",null,null,3]
[164,"CONDICIÓN DE OCUPACIÓN DE PADRE",null,null,null,"i","INDEPENDIENTE FORMAL",null,null,2]
[165,"CONDICIÓN DE OCUPACIÓN DE PADRE",null,null,null,"j","INDEPENDIENTE INFORMAL",null,null,1]
[166,"CONDICIÓN DE OCUPACIÓN DE MADRE",null,null,null,"a","SU CASA SIN ACTIVIDAD ECONÓMICA",null,null,11]
[167,"CONDICIÓN DE OCUPACIÓN DE MADRE",null,null,null,"b","SU CASA CON  ACTIVIDAD ECONÓMICA",null,null,10]
[168,"CONDICIÓN DE OCUPACIÓN DE MADRE",null,null,null,"c","PENSIONISTA ONP",null,null,9]
[169,"CONDICIÓN DE OCUPACIÓN DE MADRE",null,null,null,"d","CESANTE AFP",null,null,8]
[170,"CONDICIÓN DE OCUPACIÓN DE MADRE",null,null,null,"e","CESANTE 20530",null,null,7]
[171,"CONDICIÓN DE OCUPACIÓN DE MADRE",null,null,null,"f","ESTATAL CONTRATADO",null,null,6]
[172,"CONDICIÓN DE OCUPACIÓN DE MADRE",null,null,null,"g","ESTATAL NOMBRADO",null,null,5]
[173,"CONDICIÓN DE OCUPACIÓN DE MADRE",null,null,null,"h","PRIVADO CONTRATADO",null,null,4]
[174,"CONDICIÓN DE OCUPACIÓN DE MADRE",null,null,null,"i","PRIVADO NOMBRADO",null,null,3]
[175,"CONDICIÓN DE OCUPACIÓN DE MADRE",null,null,null,"j","INDEPENDIENTE FORMAL",null,null,2]
[176,"CONDICIÓN DE OCUPACIÓN DE MADRE",null,null,null,"k","INDEPENDIENTE INFORMAL",null,null,1]
[177,"INGRESO ADICIONAL POR ALQUILER",null,null,null,"a","ENTRE S/. 50.00 A S/.200.00",null,null,3]
[178,"INGRESO ADICIONAL POR ALQUILER",null,null,null,"b","ENTRE S/. 200.00 A S/.500.00",null,null,2]
[179,"INGRESO ADICIONAL POR ALQUILER",null,null,null,"c","MÁS DE S/.500.00",null,null,1]
[180,"INGRESO ADICIONAL POR PRODUCCIÓN (Tejido, yogurt,etc.)",null,null,null,"a","ENTRE S/. 50.00 A S/.200.00",null,null,3]
[181,"INGRESO ADICIONAL POR PRODUCCIÓN (Tejido, yogurt,etc.)",null,null,null,"b","ENTRE S/. 200.00 A S/.500.00",null,null,2]
[182,"INGRESO ADICIONAL POR PRODUCCIÓN (Tejido, yogurt,etc.)",null,null,null,"c","MÁS DE S/.500.00",null,null,1]
["CATEGORIA ECONÓMICA: EGRESOS"]
[183,"GASTOS - AGUA",null,null,null,"a","NO PAGA",null,null,5]
[184,"GASTOS - AGUA",null,null,null,"b","DE S/.1.00 A S/.20.00",null,null,4]
[185,"GASTOS - AGUA",null,null,null,"c","DE S/.21.00 A S/.50.00 ",null,null,3]
[186,"GASTOS - AGUA",null,null,null,"d","DE S/.51.00 A S/.100.00 ",null,null,2]
[187,"GASTOS - AGUA",null,null,null,"e","MAS DE S/.100.00 ",null,null,1]
[188,"GASTOS - ALQUILER",null,null,null,"a","NO PAGA",null,null,5]
[189,"GASTOS - ALQUILER",null,null,null,"b","DE S/.20.00 HASTA S/.100.00 ",null,null,4]
[190,"GASTOS - ALQUILER",null,null,null,"c","DE S/.101.00 HASTA S/.300.00",null,null,3]
[191,"GASTOS - ALQUILER",null,null,null,"d","DE S/. 300.00 HASTA S/. 400.00",null,null,2]
[192,"GASTOS - ALQUILER",null,null,null,"e","MAS DE S/.400.00 ",null,null,1]
[193,"GASTOS - LUZ",null,null,null,"a","NO PAGA",null,null,5]
[194,"GASTOS - LUZ",null,null,null,"b","DE S/.1.00 A S/.20.00",null,null,4]
[195,"GASTOS - LUZ",null,null,null,"c","DE S/.21.00 A S/.50.00 ",null,null,3]
[196,"GASTOS - LUZ",null,null,null,"d","DE S/.51.00 A S/.100.00 ",null,null,2]
[197,"GASTOS - LUZ",null,null,null,"e","MAS DE S/.100.00 ",null,null,1]
[198,"GASTOS - TELEFONO MOVIL",null,null,null,"a","DE S/. 5.00 A 20.00",null,null,5]
[199,"GASTOS - TELEFONO MOVIL",null,null,null,"b","DE S/.21.00 A S/.50.00 ",null,null,4]
[200,"GASTOS - TELEFONO MOVIL ",null,null,null,"c","DE S/.51.00 A S/.100.00 ",null,null,3]
[201,"GASTOS - TELEFONO MOVIL ",null,null,null,"d","DE S/. 100.00 A S/. 200.00",null,null,2]
[202,"GASTOS - TELEFONO MOVIL",null,null,null,"e","MAS DE S/.200.00 ",null,null,1]
[203,"MESUALIDAD DE ESTUDIOS DE TODOS",null,null,null,"a","NINGUNO",null,null,5]
[204,"MESUALIDAD DE ESTUDIOS DE TODOS",null,null,null,"b","ENTRE S/. 100.00 Y S/.300.00",null,null,4]
[205,"MESUALIDAD DE ESTUDIOS DE TODOS",null,null,null,"c","ENTRE S/. 300.00 Y S/.500.00",null,null,3]
[206,"MESUALIDAD DE ESTUDIOS DE TODOS",null,null,null,"d","ENTRE S/. 500.00 Y S/.700.00",null,null,2]
[207,"MESUALIDAD DE ESTUDIOS DE TODOS",null,null,null,"e","MAS DE S/.700.00",null,null,1]
[208,"GASTOS - TELEFONO FIJO",null,null,null,"a","NO PAGA",null,null,4]
[209,"GASTOS - TELEFONO FIJO",null,null,null,"b","MENOS DE S/. 50.00 ",null,null,3]
[210,"GASTOS - TELEFONO FIJO",null,null,null,"c","ENTRE S/. 51.00 A S/.100.00",null,null,2]
[211,"GASTOS - TELEFONO FIJO",null,null,null,"d","MAS DE S/. 101.00",null,null,1]
[212,"GASTOS - TELEFONO MOVIL FAMILIAR",null,null,null,"a","NO PAGA",null,null,4]
[213,"GASTOS - TELEFONO MOVIL FAMILIAR",null,null,null,"b","DE S/. 100.00 A S/. 200.00",null,null,3]
[214,"GASTOS - TELEFONO MOVIL FAMILIAR",null,null,null,"c","DE S/.201.00 A S/.250.00",null,null,2]
[215,"GASTOS - TELEFONO MOVIL FAMILIAR",null,null,null,"d","MAS DE S/.250.00 ",null,null,1]
[216,"GASTOS EN ALIMENTACION DE TODA LA FAMILIA",null,null,null,"a","ENTRE S/. 300.00 A S/. 400.00 MENSUAL",null,null,5]
[217,"GASTOS EN ALIMENTACION DE TODA LA FAMILIA",null,null,null,"b","ENTRE S/. 400.00 A S/. 500.00 MENSUAL",null,null,4]
[218,"GASTOS EN ALIMENTACION DE TODA LA FAMILIA",null,null,null,"c","EMTRE S/. 500.00 A S/. 600.00 MENSUAL",null,null,3]
[219,"GASTOS EN ALIMENTACION DE TODA LA FAMILIA",null,null,null,"d","ENTRE S/. 600.00 A S/. 700.00 MENSUAL",null,null,2]
[220,"GASTOS EN ALIMENTACION DE TODA LA FAMILIA",null,null,null,"e","MAS DE S/. 700.00 MENSUAL",null,null,1]
[221,"GASTOS EN MOVILIDAD DE TODA LA FAMILIA",null,null,null,"a","NINGUNO",null,null,5]
[222,"GASTOS EN MOVILIDAD DE TODA LA FAMILIA",null,null,null,"b","ENTRE S/. 50.00 Y S/. 100.00",null,null,4]
[223,"GASTOS EN MOVILIDAD DE TODA LA FAMILIA",null,null,null,"c","ENTRE S/. 100.00 Y S/. 150.00",null,null,3]
[224,"GASTOS EN MOVILIDAD DE TODA LA FAMILIA",null,null,null,"e","ENTRE S/. 150.00 Y S/. 200.00",null,null,2]
[225,"GASTOS EN MOVILIDAD DE TODA LA FAMILIA",null,null,null,"f","MAS DE S/. 200.00",null,null,1]
[226,"OTROS GASTOS (SALUD, RECREACION, VESTIDO, ETC.)",null,null,null,"a","NINGUNO ",null,null,5]
[227,"OTROS GASTOS (SALUD, RECREACION, VESTIDO, ETC.)",null,null,null,"b","ENTRE S/. 100.00 Y S/.300.00",null,null,4]
[228,"OTROS GASTOS (SALUD, RECREACION, VESTIDO, ETC.)",null,null,null,"c","ENTRE S/. 300.00 Y S/.500.00",null,null,3]
[229,"OTROS GASTOS (SALUD, RECREACION, VESTIDO, ETC.)",null,null,null,"d","ENTRE S/. 500.00 Y S/.700.00",null,null,2]
[230,"OTROS GASTOS (SALUD, RECREACION, VESTIDO, ETC.)",null,null,null,"e","MAS DE S/.700.00",null,null,1]

{"sheet":"Datos","index":1,"n_rows":16,"n_cols":7,"rows_kept":16,"cut":false,"hidden":true,"merged":[]}
[]
["FACULTAD","FACU","Facultad1","Facultad2","Facultad3","Facultad4","Facultad5"]
["FACULTAD DE CIENCIAS ECONÓMICAS ADMINISTRATIVAS Y CONTABLES","Facultad1","ADMINISTRACIÓN","EDUCACIÓN","ENFERMERÍA","DERECHO","ARQUITECTURA"]
["FACULTAD DE CIENCIAS Y HUMANIDADES","Facultad2","CONTABILIDAD","TURISMO","ESTOMATOLOGÍA",null,"INGENIERÍA AMBIENTAL"]
["FACULTAD DE CIENCIAS DE LA SALUD","Facultad3","ECONOMÍA",null,"MEDICINA HUMANA",null,"INGENIERÍA CIVIL"]
["FACULTAD DE DERECHO Y CIENCIA POLÍTICA","Facultad4","FINANZAS",null,"OBSTETRICIA",null,"INGENIERÍA DE SISTEMAS"]
["FACULTAD DE INGENIERÍA Y ARQUITECTURA","Facultad5","MARKETING",null,"PSICOLOGÍA",null,"INGENIERÍA INDUSTRIAL"]
[null,null,"ADMINISTRACIÓN DE NEGOCIOS INTERNACIONALES",null,"TECNOLOGÍA MÉDICA"]
[]
[]
["SEDE"]
["CUSCO – SEDE PRINCIPAL."]
["FILIAL SICUANI.",null,"facultad","FACULTAD DE CIENCIAS DE LA SALUD",{"$f":"VLOOKUP(D13,A3:B7,2,FALSE)","v":"Facultad3"},"MEDICINA HUMANA"]
["FILIAL QUILLABAMBA.",null,"escuela","INGENIERÍA AMBIENTAL"]
["FILIAL PUERTO MALDONADO."]
["FILIAL QOLLANA",null,"Facultad"]

{"sheet":"Cálculo","index":2,"n_rows":241,"n_cols":16,"rows_kept":241,"cut":false,"hidden":true,"merged":[[27,4,27,7],[28,4,28,5],[27,3,42,3],[49,4,49,5],[43,3,43,5],[48,5,48,6],[46,5,46,6],[47,5,47,6],[40,4,40,5],[41,4,41,5],[34,4,34,5],[35,4,35,5],[42,4,42,5],[36,4,36,5],[45,5,45,7],[39,4,39,7],[37,4,37,5],[38,4,38,5],[31,9,31,13],[29,4,29,5],[31,4,31,5],[32,4,32,5],[30,4,30,5],[32,9,32,17],[30,9,30,17],[31,14,31,17],[33,4,33,7],[0,4,0,10],[2,9,2,17],[19,12,19,17],[18,9,18,10],[13,9,13,10],[16,12,16,17],[12,6,12,7],[18,6,18,7],[19,6,19,7],[2,5,3,5],[15,5,15,6],[16,5,16,6],[3,11,3,17],[4,9,4,10],[5,14,5,17],[8,12,8,17],[29,12,29,13],[29,14,29,17],[23,11,23,12],[23,13,23,14],[25,9,25,17],[23,9,23,10],[23,15,23,17],[26,9,26,13],[27,12,27,16],[26,14,26,17],[28,13,28,14],[6,10,6,11],[7,12,7,17],[13,15,13,17],[10,11,10,15],[20,9,20,17],[16,9,16,11],[17,9,17,17],[18,12,18,17],[28,15,28,17],[28,9,28,10],[28,11,28,12],[9,9,9,10],[9,15,9,16],[22,12,22,17],[21,9,21,13],[21,14,21,17],[24,12,24,13],[24,14,24,17],[14,5,14,6],[14,11,14,17],[15,14,15,17],[11,9,11,17],[12,12,12,17]]}
[null,null,null,null,"CÁLCULO DE LA PUNTUACIÓN"]
[]
[{"$f":"'Ficha socio-económica'!A41","v":"CATEGORÍA: VIVIENDA"},{"$f":"SUM(B5:B51)","v":0},null,null,"RESUMEN","PUNTUACIÓN ACUMULADA",null,null,null,"DATOS DEL SOLICITANTE"]
[{"$f":"'Ficha socio-económica'!G42","v":"ALTERNATIVA"},null,null,null,"CATEGORIA",null,null,null,null,"NOMBRES COMPLETOS:",null,{"$f":"+'Ficha socio-económica'!C5","v":"COMPLETAR"}]
[{"$f":"'Ficha socio-económica'!G43","v":"ALOJADO"},{"$f":"IF('Ficha socio-económica'!I43=\"X\",'Ficha socio-económica'!J43,0)","v":0},null,null,{"$f":"A3","v":"CATEGORÍA: VIVIENDA"},{"$f":"B3","v":0},null,null,null,"CÓDIGO:                                                                      ",null,{"$f":"+'Ficha socio-económica'!B7","v":"COMPLETAR"},{"$f":"+'Ficha socio-económica'!D7","v":"DNI:"},{"$f":"+'Ficha socio-económica'!E7","v":"COMPLETAR"},{"$f":"+'Ficha socio-económica'!F7","v":"EDAD:"},{"$f":"+'Ficha socio-económica'!G7","v":"COMPLETAR"}]
[{"$f":"'Ficha socio-económica'!G44","v":"FAMILIAR"},{"$f":"IF('Ficha socio-económica'!I44=\"X\",'Ficha socio-económica'!J44,0)","v":0},null,null,{"$f":"A52","v":"CATEGORIA: SERVICIOS"},{"$f":"B52","v":0},null,null,null,"ESCUELA PROFESIONAL:",null,{"$f":"+'Ficha socio-económica'!C9","v":0},{"$f":"+'Ficha socio-económica'!F8","v":"CICLO:"},{"$f":"+'Ficha socio-económica'!G8","v":"COMPLETAR"}]
[{"$f":"'Ficha socio-económica'!G45","v":"ALQUILADA"},{"$f":"IF('Ficha socio-económica'!I45=\"X\",'Ficha socio-económica'!J45,0)","v":0},null,null,{"$f":"A81","v":"CATEGORIA: OTRAS COMODIDADES"},{"$f":"B81","v":0},null,null,null,"FACULTAD:",{"$f":"+'Ficha socio-económica'!B8","v":0},null,{"$f":"+'Ficha socio-económica'!F9","v":"SEMESTRE:"},{"$f":"+'Ficha socio-económica'!G9","v":"COMPLETAR"},{"$f":"+'Ficha socio-económica'!H9","v":"SEDE/FILIAL:"},{"$f":"+'Ficha socio-económica'!I9","v":0}]
[{"$f":"'Ficha socio-económica'!G46","v":"CONGREGACION"},{"$f":"IF('Ficha socio-económica'!I46=\"X\",'Ficha socio-económica'!J46,0)","v":0},null,null,{"$f":"A102","v":"CATEGORIA: FAMILIA Y ESTADO CIVIL"},{"$f":"B102","v":0},null,null,null,"LUGAR Y FECHA DE NACIMIENTO:",null,{"$f":"+'Ficha socio-económica'!D10","v":"COMPLETAR"}]
[{"$f":"'Ficha socio-económica'!G47","v":"PROPIA"},{"$f":"IF('Ficha socio-económica'!I47=\"X\",'Ficha socio-económica'!J47,0)","v":0},null,null,{"$f":"A122","v":"CATEGORIA: SALUD"},{"$f":"B122","v":0},null,null,null,"DIRECCIÓN EN LA CIUDAD DEL CUSCO:",null,null,{"$f":"+'Ficha socio-económica'!D11","v":"COMPLETAR"}]
[{"$f":"'Ficha socio-económica'!G48","v":"SEMICONSTRUIDA"},{"$f":"IF('Ficha socio-económica'!I48=\"X\",'Ficha socio-económica'!J48,0)","v":0},null,null,{"$f":"A134","v":"CATEGORIA: EDUCACIÓN"},{"$f":"B134","v":0},null,null,null,"DISTRITO:",null,{"$f":"+'Ficha socio-económica'!C12","v":"COMPLETAR"},{"$f":"+'Ficha socio-económica'!D12","v":"PROVINCIA:"},{"$f":"+'Ficha socio-económica'!E12","v":"COMPLETAR"},{"$f":"+'Ficha socio-económica'!F12","v":"DEPARTAMENTO:"},{"$f":"+'Ficha socio-económica'!G12","v":"COMPLETAR"}]
[{"$f":"'Ficha socio-económica'!G49","v":"CONSTRUIDA 1 PISO"},{"$f":"IF('Ficha socio-económica'!I49=\"X\",'Ficha socio-económica'!J49,0)","v":0},null,null,{"$f":"A153","v":"CATEGORIA ECONÓMICA: INGRESOS"},{"$f":"B153","v":0},null,null,null,"REFERENCIA:",null,{"$f":"+'Ficha socio-económica'!B14","v":0}]
[{"$f":"'Ficha socio-económica'!G50","v":"CONSTRUIDA 2 PISO"},{"$f":"IF('Ficha socio-económica'!I50=\"X\",'Ficha socio-económica'!J50,0)","v":0},null,null,{"$f":"A193","v":"CATEGORIA ECONÓMICA: EGRESOS"},{"$f":"B193","v":0}]
[{"$f":"'Ficha socio-económica'!G51","v":"CONSTRUIDA 3 PISO"},{"$f":"IF('Ficha socio-económica'!I51=\"X\",'Ficha socio-económica'!J51,0)","v":0},null,null,"PUNTUACIÓN TOTAL",{"$f":"SUM(F5:F12)","v":0},{"$f":"IF(F13<50,\"NO CALIFICA PARA BECA\",\"\")","v":"NO CALIFICA PARA BECA"},null,null,"DIRECCIÓN EN LUGAR DE ORIGEN (SOLO SI ES DE OTRO LUGAR)"]
[{"$f":"'Ficha socio-económica'!G52","v":"CONSTRUIDA MAS DE 3 PISO"},{"$f":"IF('Ficha socio-económica'!I52=\"X\",'Ficha socio-económica'!J52,0)","v":0},null,null,null,null,null,null,null,"DISTRITO:",null,{"$f":"+'Ficha socio-económica'!B17","v":"COMPLETAR"},{"$f":"+'Ficha socio-económica'!D17","v":"PROVINCIA:"},{"$f":"+'Ficha socio-económica'!E17","v":"COMPLETAR"},{"$f":"+'Ficha socio-económica'!F17","v":"DEPARTAMENTO:"},{"$f":"+'Ficha socio-económica'!G17","v":"COMPLETAR"}]
[{"$f":"'Ficha socio-económica'!G53","v":"COMUNIDAD CAMPESINA"},{"$f":"IF('Ficha socio-económica'!I53=\"X\",'Ficha socio-económica'!J53,0)","v":0},null,null,"CÓDIGO:",{"$f":"'Ficha socio-económica'!B7","v":"COMPLETAR"},null,null,null,"REFERENCIA:",null,{"$f":"+'Ficha socio-económica'!B18","v":"COMPLETAR"}]
[{"$f":"'Ficha socio-económica'!G54","v":"ASENTAMIENTO HUMANO O PP.JJ"},{"$f":"IF('Ficha socio-económica'!I54=\"X\",'Ficha socio-económica'!J54,0)","v":0},null,null,"NOMBRES COMPLETOS:",{"$f":"'Ficha socio-económica'!C5","v":"COMPLETAR"},null,null,null,"TELÉFONO FIJO:",null,{"$f":"+'Ficha socio-económica'!C19","v":"COMPLETAR"},{"$f":"+'Ficha socio-económica'!D19","v":"CELULAR:"},{"$f":"+'Ficha socio-económica'!E19","v":"COMPLETAR"}]
[{"$f":"'Ficha socio-económica'!G55","v":"BARRIO POPULAR"},{"$f":"IF('Ficha socio-económica'!I55=\"X\",'Ficha socio-económica'!J55,0)","v":0},null,null,"ESCUELA PROFESIONAL:",{"$f":"'Ficha socio-económica'!C9","v":0},null,null,null,"SI SE AUTOEDUCA ESPECIFIQUE SU ACTIVIDAD:     "]
[{"$f":"'Ficha socio-económica'!G56","v":"CERCADO - PATRIMONIO"},{"$f":"IF('Ficha socio-económica'!I56=\"X\",'Ficha socio-económica'!J56,0)","v":0}]
[{"$f":"'Ficha socio-económica'!G57","v":"CONJUNTO HABITACIONAL O UNIDAD VECINAL"},{"$f":"IF('Ficha socio-económica'!I57=\"X\",'Ficha socio-económica'!J57,0)","v":0},null,null,"PROMEDIO DEL \nSEMESTRE ANTERIOR","PROMEDIO EQUIVANTE","CANTIDAD DE CURSOS DESAPROBADOS",null,null,"TIPO DE SEGURO QUE POSEE:                                                          ",null,{"$f":"+'Ficha socio-económica'!C23","v":"COMPLETAR"}]
[{"$f":"'Ficha socio-económica'!G58","v":"CONDOMINIO"},{"$f":"IF('Ficha socio-económica'!I58=\"X\",'Ficha socio-económica'!J58,0)","v":0},null,null,null,{"$f":"IF(E20>18,20,IF(E20>16,19,IF(E20>14,18,IF(E20=14,17,0))))","v":0},null,null,null,"NOMBRE DE LA ASEGURADORA:",null,{"$f":"+'Ficha socio-económica'!C24","v":"COMPLETAR"}]
[{"$f":"'Ficha socio-económica'!G59","v":"ZONA RESIDENCIAL"},{"$f":"IF('Ficha socio-económica'!I59=\"X\",'Ficha socio-económica'!J59,0)","v":0}]
[{"$f":"'Ficha socio-económica'!G60","v":"ESTERA"},{"$f":"IF('Ficha socio-económica'!I60=\"X\",'Ficha socio-económica'!J60,0)","v":0},null,null,"CATEGORIA","PUNTUACIÓN CALIFICACIÓN","PUNTAJE",null,null,"NOMBRE DEL PADRE DE FAMILIA Y/O TUTOR LEGAL RESPONSABLE ECONÓMICO DE SU EDUCACIÓN:   "]
[{"$f":"'Ficha socio-económica'!G61","v":"PIEDRA CON BARRO"},{"$f":"IF('Ficha socio-económica'!I61=\"X\",'Ficha socio-económica'!J61,0)","v":0},null,null,{"$f":"\"PUNTAJE \"&IF(F13>Tabla!C4,Tabla!D3,IF(F13>Tabla!C5,Tabla!D4,IF(F13>Tabla!C6,Tabla!D5,IF(F13>Tabla!C7,Tabla!D6,IF(F13>Tabla!C8,Tabla!D7,IF(F13>Tabla!C9,Tabla!D8,IF(F13>Tabla!C10,Tabla!D9,IF(F13>Tabla!C11,Tabla!D10,Tabla!D11))))))))","v":"PUNTAJE I"},{"$f":"IF(G23=Tabla!I2,Tabla!H2,IF(G23=Tabla!I3,Tabla!H3,IF(G23=Tabla!I4,Tabla!H4,IF(G23=Tabla!I5,Tabla!H5,IF(G23=Tabla!I6,Tabla!H6,IF(G23=I7,H7,IF(G23=I8,H8,IF(G23=I9,H9,H10))))))))","v":0},{"$f":"IF(F13>=187,20,IF(F13>=137,19,IF(F13>=88,18,IF(F13>=50,17,IF(F13>=24,16,IF(F13>=13,15,IF(F13>=7,14,13)))))))","v":13},null,null,{"$f":"+'Ficha socio-económica'!A27","v":"DNI:"},{"$f":"+'Ficha socio-económica'!B27","v":"COMPLETAR"},{"$f":"+'Ficha socio-económica'!C27","v":"DIRECCIÓN COMPLETA:"},{"$f":"+'Ficha socio-económica'!D27","v":0}]
[{"$f":"'Ficha socio-económica'!G62","v":"MADERA"},{"$f":"IF('Ficha socio-económica'!I62=\"X\",'Ficha socio-económica'!J62,0)","v":0},null,null,null,null,null,null,null,"CENTRO DE TRABAJO:",null,{"$f":"+'Ficha socio-económica'!C28","v":"COMPLETAR"},null,"ACTIVIDAD A LA QUE SE DEDICA:",null,{"$f":"+'Ficha socio-económica'!G28","v":"COMPLETAR"}]
[{"$f":"'Ficha socio-económica'!G63","v":"ADOBE"},{"$f":"IF('Ficha socio-económica'!I63=\"X\",'Ficha socio-económica'!J63,0)","v":0},null,null,null,null,null,null,null,{"$f":"+'Ficha socio-económica'!A29","v":"CELULAR:"},{"$f":"+'Ficha socio-económica'!B29","v":"COMPLETAR"},{"$f":"+'Ficha socio-económica'!C29","v":"TELEFONO:"},{"$f":"+'Ficha socio-económica'!D29","v":"COMPLETAR"}]
[{"$f":"'Ficha socio-económica'!G64","v":"MIXTA"},{"$f":"IF('Ficha socio-económica'!I64=\"X\",'Ficha socio-económica'!J64,0)","v":0}]
[{"$f":"'Ficha socio-económica'!G65","v":"NOBLE (ladrillo, cemento)"},{"$f":"IF('Ficha socio-económica'!I65=\"X\",'Ficha socio-económica'!J65,0)","v":0},null,null,null,null,null,null,null,"NOMBRE DE LA MADRE DE FAMILIA Y/O TUTOR LEGAL RESPONSABLE ECONÓMICO DE SU EDUCACIÓN:   "]
[{"$f":"'Ficha socio-económica'!G66","v":"PLASTICO"},{"$f":"IF('Ficha socio-económica'!I66=\"X\",'Ficha socio-económica'!J66,0)","v":0},null,"VARIABLES","BECA PARCIAL POR INSOLVENCIA ECONOMIA",null,null,null,null,"DNI:",{"$f":"+'Ficha socio-económica'!B32","v":"COMPLETAR"},"DIRECCIÓN COMPLETA:",{"$f":"+'Ficha socio-económica'!D32","v":0}]
[{"$f":"'Ficha socio-económica'!G67","v":"PAJA"},{"$f":"IF('Ficha socio-económica'!I67=\"X\",'Ficha socio-económica'!J67,0)","v":0},null,null,"Responsable Económico de las mensualidades en la UAC del Estudiante: Es el Tutor o Persona Encargada de Solventar los Estudios.",null,4,null,null,"CENTRO DE TRABAJO:",null,{"$f":"+'Ficha socio-económica'!C33","v":"COMPLETAR"},null,"ACTIVIDAD A LA QUE SE DEDICA:",null,{"$f":"+'Ficha socio-económica'!G33","v":"COMPLETAR"}]
[{"$f":"'Ficha socio-económica'!G68","v":"CALAMINA"},{"$f":"IF('Ficha socio-económica'!I68=\"X\",'Ficha socio-económica'!J68,0)","v":0},null,null,"Responsabilidad Económico de las mensualidades en la UAC del Estudiante: Se Auto educa",null,3,null,null,"CELULAR:",{"$f":"+'Ficha socio-económica'!B34","v":"COMPLETAR"},"TELEFONO:",{"$f":"+'Ficha socio-económica'!D34","v":"COMPLETAR"}]
[{"$f":"'Ficha socio-económica'!G69","v":"ETERNIT, TEJA ANDINA"},{"$f":"IF('Ficha socio-económica'!I69=\"X\",'Ficha socio-económica'!J69,0)","v":0},null,null,"Responsable Económico de las mensualidades en la UAC es el Estudiante, Con uno de los padres (madre o padre), o Con ambos padres.",null,3]
[{"$f":"'Ficha socio-económica'!G70","v":"TEJAS"},{"$f":"IF('Ficha socio-económica'!I70=\"X\",'Ficha socio-económica'!J70,0)","v":0},null,null,"Responsable Económico de las mensualidades en la UAC del Estudiante: Es Uno de los padres (padre o madre).",null,2,null,null,"ESPECIFICAR LA ACTIVIDAD LABORAL DEL RESPONSABLE ECONOMICO DE SU EDUCACIÓN: \n",null,null,null,null,{"$f":"+'Ficha socio-económica'!F36","v":"COMPLETAR"}]
[{"$f":"'Ficha socio-económica'!G71","v":"LOZA CON TEJA"},{"$f":"IF('Ficha socio-económica'!I71=\"X\",'Ficha socio-económica'!J71,0)","v":0},null,null,"Responsable Económico de las mensualidades en la UAC del Estudiante: Es Ambos padres",null,1,null,null,{"$f":"+'Ficha socio-económica'!A37","v":"COMPLETAR"}]
[{"$f":"'Ficha socio-económica'!G72","v":"AZOTEA"},{"$f":"IF('Ficha socio-económica'!I72=\"X\",'Ficha socio-económica'!J72,0)","v":0},null,null,"BECA INTEGRAL POR ORFANDAD"]
[{"$f":"'Ficha socio-económica'!G73","v":"TIERRA"},{"$f":"IF('Ficha socio-económica'!I73=\"X\",'Ficha socio-económica'!J73,0)","v":0},null,null,"Responsable Económico de las mensualidades en la UAC del Estudiante: Era el Tutor o persona encargada de solventar los estudios",null,4]
[{"$f":"'Ficha socio-económica'!G74","v":"MADERA"},{"$f":"IF('Ficha socio-económica'!I74=\"X\",'Ficha socio-económica'!J74,0)","v":0},null,null,"Responsable Económico de las mensualidades en la UAC del Estudiante: Era uno de los padres (padre o madre)",null,3]
[{"$f":"'Ficha socio-económica'!G75","v":"FALSO PISO"},{"$f":"IF('Ficha socio-económica'!I75=\"X\",'Ficha socio-económica'!J75,0)","v":0},null,null,"Responsable Económico de las mensualidades en la UAC es el Estudiante, Con uno de los padres (madre o padre), o Con ambos padres.",null,3]
[{"$f":"'Ficha socio-económica'!G76","v":"CEMENTO PULIDO"},{"$f":"IF('Ficha socio-económica'!I76=\"X\",'Ficha socio-económica'!J76,0)","v":0},null,null,"Responsable Económico de las mensualidades en la UAC del Estudiante: Eran ambos padres",null,2]
[{"$f":"'Ficha socio-económica'!G77","v":"VINILICO O LOSETA"},{"$f":"IF('Ficha socio-económica'!I77=\"X\",'Ficha socio-económica'!J77,0)","v":0},null,null,"Estudiante con trabajo esporádico",null,1]
[{"$f":"'Ficha socio-económica'!G78","v":"PARQUET O MADERA"},{"$f":"IF('Ficha socio-económica'!I78=\"X\",'Ficha socio-económica'!J78,0)","v":0},null,null,"ORFANDAD (ACTUALIZACION DE DOCUMENTOS Y DATOS)"]
[{"$f":"'Ficha socio-económica'!G79","v":"UNICA"},{"$f":"IF('Ficha socio-económica'!I79=\"X\",'Ficha socio-económica'!J79,0)","v":0},null,null,"Responsable Económico de los gastos del hogar del Estudiantes: Es el Tutor o persona encargada del estudiante",null,3]
[{"$f":"'Ficha socio-económica'!G80","v":"DOS AMBIENTES"},{"$f":"IF('Ficha socio-económica'!I80=\"X\",'Ficha socio-económica'!J80,0)","v":0},null,null,"Responsable Económico de los gastos del hogar del estudiante: Es uno de los padres (padre o madre)",null,2]
[{"$f":"'Ficha socio-económica'!G81","v":"COCINA, SALA, COMEDOR Y UN DORMITORIO"},{"$f":"IF('Ficha socio-económica'!I81=\"X\",'Ficha socio-económica'!J81,0)","v":0},null,null,"Estudiante con trabajo esporádico",null,1]
[{"$f":"'Ficha socio-económica'!G82","v":"SALA, COCINA, COMEDOR Y DOS DORMITORIOS"},{"$f":"IF('Ficha socio-económica'!I82=\"X\",'Ficha socio-económica'!J82,0)","v":0},null,null,null,null,"VARIABLES",{"$f":"SUM(H28:H43)","v":0}]
[{"$f":"'Ficha socio-económica'!G83","v":"SALA, COMEDOR Y  + DE 2 DORMITORIOS"},{"$f":"IF('Ficha socio-económica'!I83=\"X\",'Ficha socio-económica'!J83,0)","v":0}]
[{"$f":"'Ficha socio-económica'!G84","v":"AMBIENTES ANTERIORES (e) MÁS SALA DE ESTUDIO Y  ESTAR"},{"$f":"IF('Ficha socio-económica'!I84=\"X\",'Ficha socio-económica'!J84,0)","v":0},null,null,null,"RESUMEN"]
[{"$f":"'Ficha socio-económica'!G85","v":"AMBENTES ANTERIÓRES (f) MÁS COCHERA"},{"$f":"IF('Ficha socio-económica'!I85=\"X\",'Ficha socio-económica'!J85,0)","v":0},null,null,null,"RENDIMIENTO",null,{"$f":"+F20","v":0}]
[{"$f":"'Ficha socio-económica'!G86","v":"HABITACIÓN MULTIFUNCIONAL"},{"$f":"IF('Ficha socio-económica'!I86=\"X\",'Ficha socio-económica'!J86,0)","v":0},null,null,null,"FSE",null,{"$f":"+G23","v":13}]
[{"$f":"'Ficha socio-económica'!G87","v":"CASONA COMPARTIDA"},{"$f":"IF('Ficha socio-económica'!I87=\"X\",'Ficha socio-económica'!J87,0)","v":0},null,null,null,"VARIABLE",null,{"$f":"+H44","v":0}]
[{"$f":"'Ficha socio-económica'!G89","v":"CASA INDEPENDIENTE"},{"$f":"IF('Ficha socio-económica'!I88=\"X\",'Ficha socio-económica'!J88,0)","v":0},null,null,"Variable + Rendimiento + FSE",null,"TOTAL",{"$f":"SUM(H47:H49)","v":13}]
[{"$f":"'Ficha socio-económica'!G88","v":"DEPARTAMENTO"},{"$f":"IF('Ficha socio-económica'!I89=\"X\",'Ficha socio-económica'!J89,0)","v":0}]
[{"$f":"'Ficha socio-económica'!A90","v":"CATEGORIA: SERVICIOS"},{"$f":"SUM(B53:B80)","v":0}]
[{"$f":"'Ficha socio-económica'!G91","v":"CISTERNA"},{"$f":"IF('Ficha socio-económica'!I91=\"X\",'Ficha socio-económica'!J91,0)","v":0}]
[{"$f":"'Ficha socio-económica'!G92","v":"POZO"},{"$f":"IF('Ficha socio-económica'!I92=\"X\",'Ficha socio-económica'!J92,0)","v":0}]
[{"$f":"'Ficha socio-económica'!G93","v":"PILÓN COMUNITARIO"},{"$f":"IF('Ficha socio-económica'!I93=\"X\",'Ficha socio-económica'!J93,0)","v":0}]
[{"$f":"'Ficha socio-económica'!G94","v":"RED DOMICILIARIA"},{"$f":"IF('Ficha socio-económica'!I94=\"X\",'Ficha socio-económica'!J94,0)","v":0}]
[{"$f":"'Ficha socio-económica'!G95","v":"AGUA FRIA"},{"$f":"IF('Ficha socio-económica'!I95=\"X\",'Ficha socio-económica'!J95,0)","v":0}]
[{"$f":"'Ficha socio-económica'!G96","v":"AGUA CALIENTE A GAS"},{"$f":"IF('Ficha socio-económica'!I96=\"X\",'Ficha socio-económica'!J96,0)","v":0}]
[{"$f":"'Ficha socio-económica'!G97","v":"AGUA CALIENTE ELECTRICA"},{"$f":"IF('Ficha socio-económica'!I97=\"X\",'Ficha socio-económica'!J97,0)","v":0}]
[{"$f":"'Ficha socio-económica'!G98","v":"AGUA CALIENTE THERMA SOLAR"},{"$f":"IF('Ficha socio-económica'!I98=\"X\",'Ficha socio-económica'!J98,0)","v":0}]
[{"$f":"'Ficha socio-económica'!G99","v":"SIN CONEXIÓN"},{"$f":"IF('Ficha socio-económica'!I99=\"X\",'Ficha socio-económica'!J99,0)","v":0}]
[{"$f":"'Ficha socio-económica'!G100","v":"SILO"},{"$f":"IF('Ficha socio-económica'!I100=\"X\",'Ficha socio-económica'!J100,0)","v":0}]
[{"$f":"'Ficha socio-económica'!G101","v":"CONEXIÓN A RED"},{"$f":"IF('Ficha socio-económica'!I101=\"X\",'Ficha socio-económica'!J101,0)","v":0}]
[{"$f":"'Ficha socio-económica'!G102","v":"CORRAL"},{"$f":"IF('Ficha socio-económica'!I102=\"X\",'Ficha socio-económica'!J102,0)","v":0}]
[{"$f":"'Ficha socio-económica'!G103","v":"SILO"},{"$f":"IF('Ficha socio-económica'!I103=\"X\",'Ficha socio-económica'!J103,0)","v":0}]
[{"$f":"'Ficha socio-económica'!G104","v":"COMPARTIDO"},{"$f":"IF('Ficha socio-económica'!I104=\"X\",'Ficha socio-económica'!J104,0)","v":0}]
[{"$f":"'Ficha socio-económica'!G105","v":"1/2 BAÑO"},{"$f":"IF('Ficha socio-económica'!I105=\"X\",'Ficha socio-económica'!J105,0)","v":0}]
[{"$f":"'Ficha socio-económica'!G106","v":"BAÑO COMPLETO"},{"$f":"IF('Ficha socio-económica'!I106=\"X\",'Ficha socio-económica'!J106,0)","v":0}]
[{"$f":"'Ficha socio-económica'!G107","v":"MAS DE UN BAÑO"},{"$f":"IF('Ficha socio-económica'!I107=\"X\",'Ficha socio-económica'!J107,0)","v":0}]
[{"$f":"'Ficha socio-económica'!G108","v":"NINGUNO"},{"$f":"IF('Ficha socio-económica'!I108=\"X\",'Ficha socio-económica'!J108,0)","v":0}]
[{"$f":"'Ficha socio-económica'!G109","v":"TELÉFONO - FIJO"},{"$f":"IF('Ficha socio-económica'!I109=\"X\",'Ficha socio-económica'!J109,0)","v":0}]
[{"$f":"'Ficha socio-económica'!G110","v":"TELÉFONO MOVIL"},{"$f":"IF('Ficha socio-económica'!I110=\"X\",'Ficha socio-económica'!J110,0)","v":0}]
[{"$f":"'Ficha socio-económica'!G111","v":"SIN CONEXIÓN"},{"$f":"IF('Ficha socio-económica'!I111=\"X\",'Ficha socio-económica'!J111,0)","v":0}]
[{"$f":"'Ficha socio-económica'!G112","v":"CONEXIÓN MULTIFAMILIAR"},{"$f":"IF('Ficha socio-económica'!I112=\"X\",'Ficha socio-económica'!J112,0)","v":0}]
[{"$f":"'Ficha socio-económica'!G113","v":"CONEXIÓN FAMILIAR"},{"$f":"IF('Ficha socio-económica'!I113=\"X\",'Ficha socio-económica'!J113,0)","v":0}]
[{"$f":"'Ficha socio-económica'!G114","v":"CONEXIÓN PERSONALIZADA"},{"$f":"IF('Ficha socio-económica'!I114=\"X\",'Ficha socio-económica'!J114,0)","v":0}]
[{"$f":"'Ficha socio-económica'!G115","v":"LEÑA"},{"$f":"IF('Ficha socio-económica'!I115=\"X\",'Ficha socio-económica'!J115,0)","v":0}]
[{"$f":"'Ficha socio-económica'!G116","v":"CARBON"},{"$f":"IF('Ficha socio-económica'!I116=\"X\",'Ficha socio-económica'!J116,0)","v":0}]
[{"$f":"'Ficha socio-económica'!G117","v":"GAS"},{"$f":"IF('Ficha socio-económica'!I117=\"X\",'Ficha socio-económica'!J117,0)","v":0}]
[{"$f":"'Ficha socio-económica'!G118","v":"ELECTRICO"},{"$f":"IF('Ficha socio-económica'!I118=\"X\",'Ficha socio-económica'!J118,0)","v":0}]
[{"$f":"'Ficha socio-económica'!A119","v":"CATEGORIA: OTRAS COMODIDADES"},{"$f":"SUM(B82:B101)","v":0}]
[{"$f":"'Ficha socio-económica'!G120","v":"SIN ARTEFACTOS"},{"$f":"IF('Ficha socio-económica'!I120=\"X\",'Ficha socio-económica'!J120,0)","v":0}]
[{"$f":"'Ficha socio-económica'!G121","v":"1 A 2 ARTEFACTOS"},{"$f":"IF('Ficha socio-económica'!I121=\"X\",'Ficha socio-económica'!J121,0)","v":0}]
[{"$f":"'Ficha socio-económica'!G122","v":"3 A 4 ARTEFACTOS"},{"$f":"IF('Ficha socio-económica'!I122=\"X\",'Ficha socio-económica'!J122,0)","v":0}]
[{"$f":"'Ficha socio-económica'!G123","v":"5 ARTEFACTOS"},{"$f":"IF('Ficha socio-económica'!I123=\"X\",'Ficha socio-económica'!J123,0)","v":0}]
[{"$f":"'Ficha socio-económica'!G124","v":"MAS DE 5 ARTEFACTOS"},{"$f":"IF('Ficha socio-económica'!I124=\"X\",'Ficha socio-económica'!J124,0)","v":0}]
[{"$f":"'Ficha socio-económica'!G125","v":"NO CUENTA CON VEHICULO"},{"$f":"IF('Ficha socio-económica'!I125=\"X\",'Ficha socio-económica'!J125,0)","v":0}]
[{"$f":"'Ficha socio-económica'!G126","v":"BICICLETA"},{"$f":"IF('Ficha socio-económica'!I126=\"X\",'Ficha socio-económica'!J126,0)","v":0}]
[{"$f":"'Ficha socio-económica'!G127","v":"TRICICLO"},{"$f":"IF('Ficha socio-económica'!I127=\"X\",'Ficha socio-económica'!J127,0)","v":0}]
[{"$f":"'Ficha socio-económica'!G128","v":"MOTOCICLETA"},{"$f":"IF('Ficha socio-económica'!I128=\"X\",'Ficha socio-económica'!J128,0)","v":0}]
[{"$f":"'Ficha socio-económica'!G129","v":"CARRO (ESPECIFIQUE EL TIPO):"},{"$f":"IF('Ficha socio-económica'!I129=\"X\",'Ficha socio-económica'!J129,0)","v":0}]
[{"$f":"'Ficha socio-económica'!G130","v":"TELEFONO FIJO"},{"$f":"IF('Ficha socio-económica'!I130=\"X\",'Ficha socio-económica'!J130,0)","v":0}]
[{"$f":"'Ficha socio-económica'!G131","v":"CELULAR"},{"$f":"IF('Ficha socio-económica'!I131=\"X\",'Ficha socio-económica'!J131,0)","v":0}]
[{"$f":"'Ficha socio-económica'!G132","v":"CABLE"},{"$f":"IF('Ficha socio-económica'!I132=\"X\",'Ficha socio-económica'!J132,0)","v":0}]
[{"$f":"'Ficha socio-económica'!G133","v":"INTERNET"},{"$f":"IF('Ficha socio-económica'!I133=\"X\",'Ficha socio-económica'!J133,0)","v":0}]
[{"$f":"'Ficha socio-económica'!G134","v":"INTERNET EN CELULAR"},{"$f":"IF('Ficha socio-económica'!I134=\"X\",'Ficha socio-económica'!J134,0)","v":0}]
[{"$f":"'Ficha socio-económica'!G135","v":"INDICAR METRAJE APROXIMADO: "},{"$f":"IF('Ficha socio-económica'!I135=\"X\",'Ficha socio-económica'!J135,0)","v":0}]
[{"$f":"'Ficha socio-económica'!G136","v":"INDICAR PARA QUE N° DE VEHICULOS:"},{"$f":"IF('Ficha socio-económica'!I136=\"X\",'Ficha socio-económica'!J136,0)","v":0}]
[{"$f":"'Ficha socio-económica'!G137","v":"EN FACHADA"},{"$f":"IF('Ficha socio-económica'!I137=\"X\",'Ficha socio-económica'!J137,0)","v":0}]
[{"$f":"'Ficha socio-económica'!G138","v":"EN INTERIOR"},{"$f":"IF('Ficha socio-económica'!I138=\"X\",'Ficha socio-económica'!J138,0)","v":0}]
[{"$f":"'Ficha socio-económica'!G139","v":"EN INTERIOR Y FACHADA"},{"$f":"IF('Ficha socio-económica'!I139=\"X\",'Ficha socio-económica'!J139,0)","v":0}]
[{"$f":"'Ficha socio-económica'!A140","v":"CATEGORIA: FAMILIA Y ESTADO CIVIL"},{"$f":"SUM(B103:B121)","v":0}]
[{"$f":"'Ficha socio-económica'!G141","v":"MONOPARENTAL (Padre o madre e hijo (s)"},{"$f":"IF('Ficha socio-económica'!I141=\"X\",'Ficha socio-económica'!J141,0)","v":0}]
[{"$f":"'Ficha socio-económica'!G142","v":"FAMILIA EXTENDIDA (padres, hermanos, abuelos, tios, etc.) "},{"$f":"IF('Ficha socio-económica'!I142=\"X\",'Ficha socio-económica'!J142,0)","v":0}]
[{"$f":"'Ficha socio-económica'!G143","v":"FAMILIA NUCLEAR (padres e hijos)"},{"$f":"IF('Ficha socio-económica'!I143=\"X\",'Ficha socio-económica'!J143,0)","v":0}]
[{"$f":"'Ficha socio-económica'!G144","v":"SEÍS A MÁS "},{"$f":"IF('Ficha socio-económica'!I144=\"X\",'Ficha socio-económica'!J144,0)","v":0}]
[{"$f":"'Ficha socio-económica'!G145","v":"CINCO"},{"$f":"IF('Ficha socio-económica'!I145=\"X\",'Ficha socio-económica'!J145,0)","v":0}]
[{"$f":"'Ficha socio-económica'!G146","v":"CUATRO"},{"$f":"IF('Ficha socio-económica'!I146=\"X\",'Ficha socio-económica'!J146,0)","v":0}]
[{"$f":"'Ficha socio-económica'!G147","v":"TRES"},{"$f":"IF('Ficha socio-económica'!I147=\"X\",'Ficha socio-económica'!J147,0)","v":0}]
[{"$f":"'Ficha socio-económica'!G148","v":"MÁS DE CUATRO"},{"$f":"IF('Ficha socio-económica'!I148=\"X\",'Ficha socio-económica'!J148,0)","v":0}]
[{"$f":"'Ficha socio-económica'!G149","v":"TRES A CUATRO"},{"$f":"IF('Ficha socio-económica'!I149=\"X\",'Ficha socio-económica'!J149,0)","v":0}]
[{"$f":"'Ficha socio-económica'!G150","v":"UNO A  DOS"},{"$f":"IF('Ficha socio-económica'!I150=\"X\",'Ficha socio-económica'!J150,0)","v":0}]
[{"$f":"'Ficha socio-económica'!G151","v":"CONVIVENCIA SIN FAMILIA EXTENDIDA"},{"$f":"IF('Ficha socio-económica'!I151=\"X\",'Ficha socio-económica'!J151,0)","v":0}]
[{"$f":"'Ficha socio-económica'!G152","v":"SEPARADO O DIVORCIADO VIUDO(A)"},{"$f":"IF('Ficha socio-económica'!I152=\"X\",'Ficha socio-económica'!J152,0)","v":0}]
[{"$f":"'Ficha socio-económica'!G153","v":"COHABITACIÓN"},{"$f":"IF('Ficha socio-económica'!I153=\"X\",'Ficha socio-económica'!J153,0)","v":0}]
[{"$f":"'Ficha socio-económica'!G154","v":"CASADOS"},{"$f":"IF('Ficha socio-económica'!I154=\"X\",'Ficha socio-económica'!J154,0)","v":0}]
[{"$f":"'Ficha socio-económica'!G155","v":"VIUDO (a) CON HIJOS"},{"$f":"IF('Ficha socio-económica'!I155=\"X\",'Ficha socio-económica'!J155,0)","v":0}]
[{"$f":"'Ficha socio-económica'!G156","v":"SOLTERO CON DOS HIJOS O MÁS"},{"$f":"IF('Ficha socio-económica'!I156=\"X\",'Ficha socio-económica'!J156,0)","v":0}]
[{"$f":"'Ficha socio-económica'!G157","v":"SOLTERO CON UN HIJO (A)"},{"$f":"IF('Ficha socio-económica'!I157=\"X\",'Ficha socio-económica'!J157,0)","v":0}]
[{"$f":"'Ficha socio-económica'!G158","v":"CASADO CON DOS HIJOS O MÁS"},{"$f":"IF('Ficha socio-económica'!I158=\"X\",'Ficha socio-económica'!J158,0)","v":0}]
[{"$f":"'Ficha socio-económica'!G159","v":"CASADO CON DOS HIJOS O MÁS"},{"$f":"IF('Ficha socio-económica'!I159=\"X\",'Ficha socio-económica'!J159,0)","v":0}]
[{"$f":"'Ficha socio-económica'!A160","v":"CATEGORIA: SALUD"},{"$f":"SUM(B123:B133)","v":0}]
[{"$f":"'Ficha socio-económica'!G161","v":"DOS MIEMBROS"},{"$f":"IF('Ficha socio-económica'!I161=\"X\",'Ficha socio-económica'!J161,0)","v":0}]
[{"$f":"'Ficha socio-económica'!G162","v":"UN MIEMBRO"},{"$f":"IF('Ficha socio-económica'!I162=\"X\",'Ficha socio-económica'!J162,0)","v":0}]
[{"$f":"'Ficha socio-económica'!G163","v":"NINGUNO"},{"$f":"IF('Ficha socio-económica'!I163=\"X\",'Ficha socio-económica'!J163,0)","v":0}]
[{"$f":"'Ficha socio-económica'!G164","v":"TERMINAL"},{"$f":"IF('Ficha socio-económica'!I164=\"X\",'Ficha socio-económica'!J164,0)","v":0}]
[{"$f":"'Ficha socio-económica'!G165","v":"DISCAPACIDAD"},{"$f":"IF('Ficha socio-económica'!I165=\"X\",'Ficha socio-económica'!J165,0)","v":0}]
[{"$f":"'Ficha socio-económica'!G166","v":"CRONICA (MAS DE 30 DIAS)"},{"$f":"IF('Ficha socio-económica'!I166=\"X\",'Ficha socio-económica'!J166,0)","v":0}]
[{"$f":"'Ficha socio-económica'!G167","v":"AGUDA (HASTA 30 DIAS)"},{"$f":"IF('Ficha socio-económica'!I167=\"X\",'Ficha socio-económica'!J167,0)","v":0}]
[{"$f":"'Ficha socio-económica'!G168","v":"NINGUNO"},{"$f":"IF('Ficha socio-económica'!I168=\"X\",'Ficha socio-económica'!J168,0)","v":0}]
[{"$f":"'Ficha socio-económica'!G169","v":"PRODUCTOS DE LA REGIÓN"},{"$f":"IF('Ficha socio-económica'!I169=\"X\",'Ficha socio-económica'!J169,0)","v":0}]
[{"$f":"'Ficha socio-económica'!G170","v":"PRODUCTOS PROCESADOS"},{"$f":"IF('Ficha socio-económica'!I170=\"X\",'Ficha socio-económica'!J170,0)","v":0}]
[{"$f":"'Ficha socio-económica'!G171","v":"PRODUCTOS IMPORTADOS"},{"$f":"IF('Ficha socio-económica'!I171=\"X\",'Ficha socio-económica'!J171,0)","v":0}]
[{"$f":"'Ficha socio-económica'!A172","v":"CATEGORIA: EDUCACIÓN"},{"$f":"SUM(B135:B152)","v":0}]
[{"$f":"'Ficha socio-económica'!G173","v":"ESTATAL"},{"$f":"IF('Ficha socio-económica'!I173=\"X\",'Ficha socio-económica'!J173,0)","v":0}]
[{"$f":"'Ficha socio-económica'!G174","v":"PARA ESTATAL"},{"$f":"IF('Ficha socio-económica'!I174=\"X\",'Ficha socio-económica'!J174,0)","v":0}]
[{"$f":"'Ficha socio-económica'!G175","v":"PRIVADO"},{"$f":"IF('Ficha socio-económica'!I175=\"X\",'Ficha socio-económica'!J175,0)","v":0}]
[{"$f":"'Ficha socio-económica'!G176","v":"AUTOEDUCACIÓN "},{"$f":"IF('Ficha socio-económica'!I176=\"X\",'Ficha socio-económica'!J176,0)","v":0}]
[{"$f":"'Ficha socio-económica'!G177","v":"PADRE"},{"$f":"IF('Ficha socio-económica'!I177=\"X\",'Ficha socio-económica'!J177,0)","v":0}]
[{"$f":"'Ficha socio-económica'!G178","v":"MADRE"},{"$f":"IF('Ficha socio-económica'!I178=\"X\",'Ficha socio-económica'!J178,0)","v":0}]
[{"$f":"'Ficha socio-económica'!G179","v":"AMBOS PADRES"},{"$f":"IF('Ficha socio-económica'!I179=\"X\",'Ficha socio-económica'!J179,0)","v":0}]
[{"$f":"'Ficha socio-económica'!G180","v":"ABUELOS (Especificar)"},{"$f":"IF('Ficha socio-económica'!I180=\"X\",'Ficha socio-económica'!J180,0)","v":0}]
[{"$f":"'Ficha socio-económica'!G181","v":"HERMANOS (Especificar)"},{"$f":"IF('Ficha socio-económica'!I181=\"X\",'Ficha socio-económica'!J181,0)","v":0}]
[{"$f":"'Ficha socio-económica'!G182","v":"TIOS, OTROS (Especificar) "},{"$f":"IF('Ficha socio-económica'!I182=\"X\",'Ficha socio-económica'!J182,0)","v":0}]
[{"$f":"'Ficha socio-económica'!G183","v":"MÁS DE TRES"},{"$f":"IF('Ficha socio-económica'!I183=\"X\",'Ficha socio-económica'!J183,0)","v":0}]
[{"$f":"'Ficha socio-económica'!G184","v":"DOS"},{"$f":"IF('Ficha socio-económica'!I184=\"X\",'Ficha socio-económica'!J184,0)","v":0}]
[{"$f":"'Ficha socio-económica'!G185","v":"UNO"},{"$f":"IF('Ficha socio-económica'!I185=\"X\",'Ficha socio-económica'!J185,0)","v":0}]
[{"$f":"'Ficha socio-económica'!G186","v":"NINGUNO"},{"$f":"IF('Ficha socio-económica'!I186=\"X\",'Ficha socio-económica'!J186,0)","v":0}]
[{"$f":"'Ficha socio-económica'!G187","v":"TRES"},{"$f":"IF('Ficha socio-económica'!I187=\"X\",'Ficha socio-económica'!J187,0)","v":0}]
[{"$f":"'Ficha socio-económica'!G188","v":"DOS"},{"$f":"IF('Ficha socio-económica'!I188=\"X\",'Ficha socio-económica'!J188,0)","v":0}]
[{"$f":"'Ficha socio-económica'!G189","v":"UNO"},{"$f":"IF('Ficha socio-económica'!I189=\"X\",'Ficha socio-económica'!J189,0)","v":0}]
[{"$f":"'Ficha socio-económica'!G190","v":"NINGUNO"},{"$f":"IF('Ficha socio-económica'!I190=\"X\",'Ficha socio-económica'!J190,0)","v":0}]
[{"$f":"'Ficha socio-económica'!A191","v":"CATEGORIA ECONÓMICA: INGRESOS"},{"$f":"SUM(B154:B192)","v":0}]
[{"$f":"'Ficha socio-económica'!G192","v":"BÁSICO (MENOS DE 1,300.00)"},{"$f":"IF('Ficha socio-económica'!I192=\"X\",'Ficha socio-económica'!J192,0)","v":0}]
[{"$f":"'Ficha socio-económica'!G193","v":"ENTRE S/. 1300.00 A 1500.00"},{"$f":"IF('Ficha socio-económica'!I193=\"X\",'Ficha socio-económica'!J193,0)","v":0}]
[{"$f":"'Ficha socio-económica'!G194","v":"ENTRE S/. 1500.00 A 2500.00"},{"$f":"IF('Ficha socio-económica'!I194=\"X\",'Ficha socio-económica'!J194,0)","v":0}]
[{"$f":"'Ficha socio-económica'!G195","v":"ENTRE S/. 2500.00 A 4000.00"},{"$f":"IF('Ficha socio-económica'!I195=\"X\",'Ficha socio-económica'!J195,0)","v":0}]
[{"$f":"'Ficha socio-económica'!G196","v":"MAS DE S/. 4000.00"},{"$f":"IF('Ficha socio-económica'!I196=\"X\",'Ficha socio-económica'!J196,0)","v":0}]
[{"$f":"'Ficha socio-económica'!G197","v":"INGRESOS ADICIONALES"},{"$f":"IF('Ficha socio-económica'!I197=\"X\",'Ficha socio-económica'!J197,0)","v":0}]
[{"$f":"'Ficha socio-económica'!G198","v":"SOLO MADRE"},{"$f":"IF('Ficha socio-económica'!I198=\"X\",'Ficha socio-económica'!J198,0)","v":0}]
[{"$f":"'Ficha socio-económica'!G199","v":"SOLO PADRE"},{"$f":"IF('Ficha socio-económica'!I199=\"X\",'Ficha socio-económica'!J199,0)","v":0}]
[{"$f":"'Ficha socio-económica'!G200","v":"AMBOS PADRES"},{"$f":"IF('Ficha socio-económica'!I200=\"X\",'Ficha socio-económica'!J200,0)","v":0}]
[{"$f":"'Ficha socio-económica'!G201","v":"MADRE Y OTRO MIEMBRO"},{"$f":"IF('Ficha socio-económica'!I201=\"X\",'Ficha socio-económica'!J201,0)","v":0}]
[{"$f":"'Ficha socio-económica'!G202","v":"PADRE Y OTRO MIEMBRO"},{"$f":"IF('Ficha socio-económica'!I202=\"X\",'Ficha socio-económica'!J202,0)","v":0}]
[{"$f":"'Ficha socio-económica'!G203","v":"MAS DE TRES MIENBROS"},{"$f":"IF('Ficha socio-económica'!I203=\"X\",'Ficha socio-económica'!J203,0)","v":0}]
[{"$f":"'Ficha socio-económica'!G204","v":"CON OCUPACION INFORMAL TEMPORAL"},{"$f":"IF('Ficha socio-económica'!I204=\"X\",'Ficha socio-económica'!J204,0)","v":0}]
[{"$f":"'Ficha socio-económica'!G205","v":"PENSIONISTA ONP"},{"$f":"IF('Ficha socio-económica'!I205=\"X\",'Ficha socio-económica'!J205,0)","v":0}]
[{"$f":"'Ficha socio-económica'!G206","v":"CESANTE AFP"},{"$f":"IF('Ficha socio-económica'!I206=\"X\",'Ficha socio-económica'!J206,0)","v":0}]
[{"$f":"'Ficha socio-económica'!G207","v":"CESANTE 20530"},{"$f":"IF('Ficha socio-económica'!I207=\"X\",'Ficha socio-económica'!J207,0)","v":0}]
[{"$f":"'Ficha socio-económica'!G208","v":"ESTATAL CONTRATADO"},{"$f":"IF('Ficha socio-económica'!I208=\"X\",'Ficha socio-económica'!J208,0)","v":0}]
[{"$f":"'Ficha socio-económica'!G209","v":"ESTATAL NOMBRADO"},{"$f":"IF('Ficha socio-económica'!I209=\"X\",'Ficha socio-económica'!J209,0)","v":0}]
[{"$f":"'Ficha socio-económica'!G210","v":"PRIVADO CONTRATADO "},{"$f":"IF('Ficha socio-económica'!I210=\"X\",'Ficha socio-económica'!J210,0)","v":0}]
[{"$f":"'Ficha socio-económica'!G211","v":"PRIVADO NOMBRADO"},{"$f":"IF('Ficha socio-económica'!I211=\"X\",'Ficha socio-económica'!J211,0)","v":0}]
[{"$f":"'Ficha socio-económica'!G212","v":"INDEPENDIENTE FORMAL"},{"$f":"IF('Ficha socio-económica'!I212=\"X\",'Ficha socio-económica'!J212,0)","v":0}]
[{"$f":"'Ficha socio-económica'!G213","v":"INDEPENDIENTE INFORMAL"},{"$f":"IF('Ficha socio-económica'!I213=\"X\",'Ficha socio-económica'!J213,0)","v":0}]
[{"$f":"'Ficha socio-económica'!G214","v":"SU CASA SIN ACTIVIDAD ECONÓMICA"},{"$f":"IF('Ficha socio-económica'!I214=\"X\",'Ficha socio-económica'!J214,0)","v":0}]
[{"$f":"'Ficha socio-económica'!G215","v":"SU CASA CON  ACTIVIDAD ECONÓMICA"},{"$f":"IF('Ficha socio-económica'!I215=\"X\",'Ficha socio-económica'!J215,0)","v":0}]
[{"$f":"'Ficha socio-económica'!G216","v":"PENSIONISTA ONP"},{"$f":"IF('Ficha socio-económica'!I216=\"X\",'Ficha socio-económica'!J216,0)","v":0}]
[{"$f":"'Ficha socio-económica'!G217","v":"CESANTE AFP"},{"$f":"IF('Ficha socio-económica'!I217=\"X\",'Ficha socio-económica'!J217,0)","v":0}]
[{"$f":"'Ficha socio-económica'!G218","v":"CESANTE 20530"},{"$f":"IF('Ficha socio-económica'!I218=\"X\",'Ficha socio-económica'!J218,0)","v":0}]
[{"$f":"'Ficha socio-económica'!G219","v":"ESTATAL CONTRATADO"},{"$f":"IF('Ficha socio-económica'!I219=\"X\",'Ficha socio-económica'!J219,0)","v":0}]
[{"$f":"'Ficha socio-económica'!G220","v":"ESTATAL NOMBRADO"},{"$f":"IF('Ficha socio-económica'!I220=\"X\",'Ficha socio-económica'!J220,0)","v":0}]
[{"$f":"'Ficha socio-económica'!G221","v":"PRIVADO CONTRATADO"},{"$f":"IF('Ficha socio-económica'!I221=\"X\",'Ficha socio-económica'!J221,0)","v":0}]
[{"$f":"'Ficha socio-económica'!G222","v":"PRIVADO NOMBRADO"},{"$f":"IF('Ficha socio-económica'!I222=\"X\",'Ficha socio-económica'!J222,0)","v":0}]
[{"$f":"'Ficha socio-económica'!G223","v":"INDEPENDIENTE FORMAL"},{"$f":"IF('Ficha socio-económica'!I223=\"X\",'Ficha socio-económica'!J223,0)","v":0}]
[{"$f":"'Ficha socio-económica'!G224","v":"INDEPENDIENTE INFORMAL"},{"$f":"IF('Ficha socio-económica'!I224=\"X\",'Ficha socio-económica'!J224,0)","v":0}]
[{"$f":"'Ficha socio-económica'!G225","v":"ENTRE S/. 50.00 A S/.200.00"},{"$f":"IF('Ficha socio-económica'!I225=\"X\",'Ficha socio-económica'!J225,0)","v":0}]
[{"$f":"'Ficha socio-económica'!G226","v":"ENTRE S/. 200.00 A S/.500.00"},{"$f":"IF('Ficha socio-económica'!I226=\"X\",'Ficha socio-económica'!J226,0)","v":0}]
[{"$f":"'Ficha socio-económica'!G227","v":"MÁS DE S/.500.00"},{"$f":"IF('Ficha socio-económica'!I227=\"X\",'Ficha socio-económica'!J227,0)","v":0}]
[{"$f":"'Ficha socio-económica'!G228","v":"ENTRE S/. 50.00 A S/.200.00"},{"$f":"IF('Ficha socio-económica'!I228=\"X\",'Ficha socio-económica'!J228,0)","v":0}]
[{"$f":"'Ficha socio-económica'!G229","v":"ENTRE S/. 200.00 A S/.500.00"},{"$f":"IF('Ficha socio-económica'!I229=\"X\",'Ficha socio-económica'!J229,0)","v":0}]
[{"$f":"'Ficha socio-económica'!G230","v":"MÁS DE S/.500.00"},{"$f":"IF('Ficha socio-económica'!I230=\"X\",'Ficha socio-económica'!J230,0)","v":0}]
[{"$f":"'Ficha socio-económica'!A231","v":"CATEGORIA ECONÓMICA: EGRESOS"},{"$f":"SUM(B194:B241)","v":0}]
[{"$f":"'Ficha socio-económica'!G232","v":"NO PAGA"},{"$f":"IF('Ficha socio-económica'!I232=\"X\",'Ficha socio-económica'!J232,0)","v":0}]
[{"$f":"'Ficha socio-económica'!G233","v":"DE S/.1.00 A S/.20.00"},{"$f":"IF('Ficha socio-económica'!I233=\"X\",'Ficha socio-económica'!J233,0)","v":0}]
[{"$f":"'Ficha socio-económica'!G234","v":"DE S/.21.00 A S/.50.00 "},{"$f":"IF('Ficha socio-económica'!I234=\"X\",'Ficha socio-económica'!J234,0)","v":0}]
[{"$f":"'Ficha socio-económica'!G235","v":"DE S/.51.00 A S/.100.00 "},{"$f":"IF('Ficha socio-económica'!I235=\"X\",'Ficha socio-económica'!J235,0)","v":0}]
[{"$f":"'Ficha socio-económica'!G236","v":"MAS DE S/.100.00 "},{"$f":"IF('Ficha socio-económica'!I236=\"X\",'Ficha socio-económica'!J236,0)","v":0}]
[{"$f":"'Ficha socio-económica'!G237","v":"NO PAGA"},{"$f":"IF('Ficha socio-económica'!I237=\"X\",'Ficha socio-económica'!J237,0)","v":0}]
[{"$f":"'Ficha socio-económica'!G238","v":"DE S/.20.00 HASTA S/.100.00 "},{"$f":"IF('Ficha socio-económica'!I238=\"X\",'Ficha socio-económica'!J238,0)","v":0}]
[{"$f":"'Ficha socio-económica'!G239","v":"DE S/.101.00 HASTA S/.300.00"},{"$f":"IF('Ficha socio-económica'!I239=\"X\",'Ficha socio-económica'!J239,0)","v":0}]
[{"$f":"'Ficha socio-económica'!G240","v":"DE S/. 300.00 HASTA S/. 400.00"},{"$f":"IF('Ficha socio-económica'!I240=\"X\",'Ficha socio-económica'!J240,0)","v":0}]
[{"$f":"'Ficha socio-económica'!G241","v":"MAS DE S/.400.00 "},{"$f":"IF('Ficha socio-económica'!I241=\"X\",'Ficha socio-económica'!J241,0)","v":0}]
[{"$f":"'Ficha socio-económica'!G242","v":"NO PAGA"},{"$f":"IF('Ficha socio-económica'!I242=\"X\",'Ficha socio-económica'!J242,0)","v":0}]
[{"$f":"'Ficha socio-económica'!G243","v":"DE S/.1.00 A S/.20.00"},{"$f":"IF('Ficha socio-económica'!I243=\"X\",'Ficha socio-económica'!J243,0)","v":0}]
[{"$f":"'Ficha socio-económica'!G244","v":"DE S/.21.00 A S/.50.00 "},{"$f":"IF('Ficha socio-económica'!I244=\"X\",'Ficha socio-económica'!J244,0)","v":0}]
[{"$f":"'Ficha socio-económica'!G245","v":"DE S/.51.00 A S/.100.00 "},{"$f":"IF('Ficha socio-económica'!I245=\"X\",'Ficha socio-económica'!J245,0)","v":0}]
[{"$f":"'Ficha socio-económica'!G246","v":"MAS DE S/.100.00 "},{"$f":"IF('Ficha socio-económica'!I246=\"X\",'Ficha socio-económica'!J246,0)","v":0}]
[{"$f":"'Ficha socio-económica'!G247","v":"DE S/. 5.00 A 20.00"},{"$f":"IF('Ficha socio-económica'!I247=\"X\",'Ficha socio-económica'!J247,0)","v":0}]
[{"$f":"'Ficha socio-económica'!G248","v":"DE S/.21.00 A S/.50.00 "},{"$f":"IF('Ficha socio-económica'!I248=\"X\",'Ficha socio-económica'!J248,0)","v":0}]
[{"$f":"'Ficha socio-económica'!G249","v":"DE S/.51.00 A S/.100.00 "},{"$f":"IF('Ficha socio-económica'!I249=\"X\",'Ficha socio-económica'!J249,0)","v":0}]
[{"$f":"'Ficha socio-económica'!G250","v":"DE S/. 100.00 A S/. 200.00"},{"$f":"IF('Ficha socio-económica'!I250=\"X\",'Ficha socio-económica'!J250,0)","v":0}]
[{"$f":"'Ficha socio-económica'!G251","v":"MAS DE S/.200.00 "},{"$f":"IF('Ficha socio-económica'!I251=\"X\",'Ficha socio-económica'!J251,0)","v":0}]
[{"$f":"'Ficha socio-económica'!G252","v":"NINGUNO"},{"$f":"IF('Ficha socio-económica'!I252=\"X\",'Ficha socio-económica'!J252,0)","v":0}]
[{"$f":"'Ficha socio-económica'!G253","v":"ENTRE S/. 100.00 Y S/.300.00"},{"$f":"IF('Ficha socio-económica'!I253=\"X\",'Ficha socio-económica'!J253,0)","v":0}]
[{"$f":"'Ficha socio-económica'!G254","v":"ENTRE S/. 300.00 Y S/.500.00"},{"$f":"IF('Ficha socio-económica'!I254=\"X\",'Ficha socio-económica'!J254,0)","v":0}]
[{"$f":"'Ficha socio-económica'!G255","v":"ENTRE S/. 500.00 Y S/.700.00"},{"$f":"IF('Ficha socio-económica'!I255=\"X\",'Ficha socio-económica'!J255,0)","v":0}]
[{"$f":"'Ficha socio-económica'!G256","v":"MAS DE S/.700.00"},{"$f":"IF('Ficha socio-económica'!I256=\"X\",'Ficha socio-económica'!J256,0)","v":0}]
[{"$f":"'Ficha socio-económica'!G257","v":"NO PAGA"},{"$f":"IF('Ficha socio-económica'!I257=\"X\",'Ficha socio-económica'!J257,0)","v":0}]
[{"$f":"'Ficha socio-económica'!G258","v":"MENOS DE S/. 50.00 "},{"$f":"IF('Ficha socio-económica'!I258=\"X\",'Ficha socio-económica'!J258,0)","v":0}]
[{"$f":"'Ficha socio-económica'!G259","v":"ENTRE S/. 51.00 A S/.100.00"},{"$f":"IF('Ficha socio-económica'!I259=\"X\",'Ficha socio-económica'!J259,0)","v":0}]
[{"$f":"'Ficha socio-económica'!G260","v":"MAS DE S/. 101.00"},{"$f":"IF('Ficha socio-económica'!I260=\"X\",'Ficha socio-económica'!J260,0)","v":0}]
[{"$f":"'Ficha socio-económica'!G261","v":"NO PAGA"},{"$f":"IF('Ficha socio-económica'!I261=\"X\",'Ficha socio-económica'!J261,0)","v":0}]
[{"$f":"'Ficha socio-económica'!G262","v":"DE S/. 100.00 A S/. 200.00"},{"$f":"IF('Ficha socio-económica'!I262=\"X\",'Ficha socio-económica'!J262,0)","v":0}]
[{"$f":"'Ficha socio-económica'!G263","v":"DE S/.201.00 A S/.250.00"},{"$f":"IF('Ficha socio-económica'!I263=\"X\",'Ficha socio-económica'!J263,0)","v":0}]
[{"$f":"'Ficha socio-económica'!G264","v":"MAS DE S/.250.00 "},{"$f":"IF('Ficha socio-económica'!I264=\"X\",'Ficha socio-económica'!J264,0)","v":0}]
[{"$f":"'Ficha socio-económica'!G265","v":"ENTRE S/. 300.00 A S/. 400.00 MENSUAL"},{"$f":"IF('Ficha socio-económica'!I265=\"X\",'Ficha socio-económica'!J265,0)","v":0}]
[{"$f":"'Ficha socio-económica'!G266","v":"ENTRE S/. 400.00 A S/. 500.00 MENSUAL"},{"$f":"IF('Ficha socio-económica'!I266=\"X\",'Ficha socio-económica'!J266,0)","v":0}]
[{"$f":"'Ficha socio-económica'!G267","v":"EMTRE S/. 500.00 A S/. 600.00 MENSUAL"},{"$f":"IF('Ficha socio-económica'!I267=\"X\",'Ficha socio-económica'!J267,0)","v":0}]
[{"$f":"'Ficha socio-económica'!G268","v":"ENTRE S/. 600.00 A S/. 700.00 MENSUAL"},{"$f":"IF('Ficha socio-económica'!I268=\"X\",'Ficha socio-económica'!J268,0)","v":0}]
[{"$f":"'Ficha socio-económica'!G269","v":"MAS DE S/. 700.00 MENSUAL"},{"$f":"IF('Ficha socio-económica'!I269=\"X\",'Ficha socio-económica'!J269,0)","v":0}]
[{"$f":"'Ficha socio-económica'!G270","v":"NINGUNO"},{"$f":"IF('Ficha socio-económica'!I270=\"X\",'Ficha socio-económica'!J270,0)","v":0}]
[{"$f":"'Ficha socio-económica'!G271","v":"ENTRE S/. 50.00 Y S/. 100.00"},{"$f":"IF('Ficha socio-económica'!I271=\"X\",'Ficha socio-económica'!J271,0)","v":0}]
[{"$f":"'Ficha socio-económica'!G272","v":"ENTRE S/. 100.00 Y S/. 150.00"},{"$f":"IF('Ficha socio-económica'!I272=\"X\",'Ficha socio-económica'!J272,0)","v":0}]
[{"$f":"'Ficha socio-económica'!G273","v":"ENTRE S/. 150.00 Y S/. 200.00"},{"$f":"IF('Ficha socio-económica'!I273=\"X\",'Ficha socio-económica'!J273,0)","v":0}]
[{"$f":"'Ficha socio-económica'!G274","v":"MAS DE S/. 200.00"},{"$f":"IF('Ficha socio-económica'!I274=\"X\",'Ficha socio-económica'!J274,0)","v":0}]
[{"$f":"'Ficha socio-económica'!G275","v":"NINGUNO "},{"$f":"IF('Ficha socio-económica'!I275=\"X\",'Ficha socio-económica'!J275,0)","v":0}]
[{"$f":"'Ficha socio-económica'!G276","v":"ENTRE S/. 100.00 Y S/.300.00"},{"$f":"IF('Ficha socio-económica'!I276=\"X\",'Ficha socio-económica'!J276,0)","v":0}]
[{"$f":"'Ficha socio-económica'!G277","v":"ENTRE S/. 300.00 Y S/.500.00"},{"$f":"IF('Ficha socio-económica'!I277=\"X\",'Ficha socio-económica'!J277,0)","v":0}]
[{"$f":"'Ficha socio-económica'!G278","v":"ENTRE S/. 500.00 Y S/.700.00"},{"$f":"IF('Ficha socio-económica'!I278=\"X\",'Ficha socio-económica'!J278,0)","v":0}]
[{"$f":"'Ficha socio-económica'!G279","v":"MAS DE S/.700.00"},{"$f":"IF('Ficha socio-económica'!I279=\"X\",'Ficha socio-económica'!J279,0)","v":0}]

{"sheet":"Formato expediente","index":3,"n_rows":2,"n_cols":15,"rows_kept":2,"cut":false,"hidden":true,"merged":[]}
["N°","N° x\n EP","Fecha\nRecepción ","Escuela \nProfesional","Código","Apellidos y Nombres","Sede/Filial","Variables","E.S.E.","Promedio (Nota)","PUNTAJE TOTAL","Matricula 2020-II","Expediente Completo (registro de todo los documentos presentados)","Obsevaciones\n(registro de todos los documentos que le faltan)","NRO. DE CURSOS DESAPROBADOS"]
[null,null,null,{"$f":"UPPER('Ficha socio-económica'!C9)","v":""},{"$f":"UPPER('Ficha socio-económica'!B7)","v":"COMPLETAR"},{"$f":"UPPER('Ficha socio-económica'!K5)","v":"COMPLETAR COMPLETAR, COMPLETAR"},{"$f":"UPPER('Ficha socio-económica'!I9)","v":""},{"$f":"+Cálculo!H49","v":0},{"$f":"+Cálculo!H48","v":13},{"$f":"+Cálculo!H47","v":0},{"$f":"+Cálculo!H50","v":13},null,null,null,{"$f":"+Cálculo!G20","v":0}]

{"sheet":"Tabla","index":4,"n_rows":14,"n_cols":9,"rows_kept":14,"cut":false,"hidden":true,"merged":[]}
[]
[null,"CATEGORIAS",47,null,null,"Entre 235 y 187 puntos (puntaje A y B)","Prioridad","A",20]
[null,"PUNTAJE \"A\"",235,"A",null,"Entre 186 y 137 puntos (puntaje B y C)","Prioridad","B",19]
[null,"PUNTAJE \"B\"",187,"B",null,"Entre 136 y 88 puntos (puntaje C y D)","Prioridad","C",18]
[null,"PUNTAJE \"C\"",137,"C",null,"Entre 87 y 50 puntos (puntaje D y E)","Prioridad","D",17]
[null,"PUNTAJE \"D\"",88,"D",null,"Entre 49 y 24 puntos (puntaje E y F)","Prioridad","E",16]
[null,"PUNTAJE \"E\"",50,"E",null,"Entre 23 y 13 ountos (puntaje F y G)  ","Prioridad","F",15]
[null,"PUNTAJE \"F\"",24,"F",null,"Entre 12 y 7 puntos (puntaje G y H)","Prioridad","G",14]
[null,"PUNTAJE \"G\"",13,"G",null,"Entre 6 y 5 puntos (puntaje H y I)","Prioridad","H",13]
[null,"PUNTAJE \"H\"",7,"H",null,"Entre 4 y 2 puntos (puntaje I y J)","Prioridad","I",12]
[null,"PUNTAJE \"I\"",5,"I",null,"Entre 1 y 0 puntos (puntaje J y K)","Prioridad","J",11]
[null,"PUNTAJE \"J\"",3,"J"]
[null,"PUNTAJE \"k\"",1,"K"]
[null,"SIN PUNTAJE",0,"L"]